Workbook

Sheet 契約の統計 (hidden)
C1: 部局： | D1: =参考資料!C1 -> **
A2: 【一般競争】
B3: 競争参加資格区分 | D3: 所管公益法人 | F3: その他の公益法人 | H3: 独立行政法人等 | J3: 特殊法人等 | L3: 特定民間法人等 | N3: その他の法人等 | P3: 所管公益法人等 | R3: 所管公益法人等以外の法人等 | T3: 合計 | W3: 左記のうち、総合評価方式によるもの
D4: 件数 | E4: 金額 | F4: 件数 | G4: 金額 | H4: 件数 | I4: 金額 | J4: 件数 | K4: 金額 | L4: 件数 | M4: 金額 | N4: 件数 | O4: 金額 | P4: 件数 | Q4: 金額 | R4: 件数 | S4: 金額 | T4: 件数 | U4: 金額 | W4: 件数 | X4: 金額
B5: （物品役務等） | D5: =SUM(D6:D7) ->  | T5: =P5+R5 ->  | W5: =SUM(W6:W7) ->  | X5: =SUM(X6:X7) -> 
B6: うち、物品関係 | D6: =COUNTIFS(#REF!,"一般競争",#REF!,1,#REF!,1,#REF!,$D$1) ->  | E6: =SUMIFS(#REF!,#REF!,"一般競争",#REF!,1,#REF!,1,#REF!,$D$1) ->  | F6: =COUNTIFS(#REF!,"一般競争",#REF!,2,#REF!,1,#REF!,$D$1) ->  | G6: =SUMIFS(#REF!,#REF!,"一般競争",#REF!,2,#REF!,1,#REF!,$D$1) ->  | H6: =COUNTIFS(#REF!,"一般競争",#REF!,3,#REF!,1,#REF!,$D$1) ->  | I6: =SUMIFS(#REF!,#REF!,"一般競争",#REF!,3,#REF!,1,#REF!,$D$1) ->  | J6: =COUNTIFS(#REF!,"一般競争",#REF!,4,#REF!,1,#REF!,$D$1) ->  | K6: =SUMIFS(#REF!,#REF!,"一般競争",#REF!,4,#REF!,1,#REF!,$D$1) ->  | L6: =COUNTIFS(#REF!,"一般競争",#REF!,5,#REF!,1,#REF!,$D$1) ->  | M6: =SUMIFS(#REF!,#REF!,"一般競争",#REF!,5,#REF!,1,#REF!,$D$1) ->  | N6: =COUNTIFS(#REF!,"一般競争",#REF!,6,#REF!,1,#REF!,$D$1) ->  | O6: =SUMIFS(#REF!,#REF!,"一般競争",#REF!,6,#REF!,1,#REF!,$D$1) ->  | P6: =D6+H6+J6+L6 ->  | R6: =F6+N6 ->  | W6: =COUNTIFS(#REF!,"一般競争",#REF!,1,#REF!,1,#REF!,$D$1) ->  | X6: =SUMIFS(#REF!,#REF!,1,#REF!,"一般競争",#REF!,1,#REF!,$D$1) -> 
B7: うち、役務関係 | D7: =COUNTIFS(#REF!,"一般競争",#REF!,1,#REF!,2,#REF!,$D$1) ->  | E7: =SUMIFS(#REF!,#REF!,"一般競争",#REF!,1,#REF!,2,#REF!,$D$1) ->  | F7: =COUNTIFS(#REF!,"一般競争",#REF!,2,#REF!,2,#REF!,$D$1) ->  | G7: =SUMIFS(#REF!,#REF!,"一般競争",#REF!,2,#REF!,2,#REF!,$D$1) ->  | H7: =COUNTIFS(#REF!,"一般競争",#REF!,3,#REF!,2,#REF!,$D$1) ->  | I7: =SUMIFS(#REF!,#REF!,"一般競争",#REF!,3,#REF!,2,#REF!,$D$1) ->  | J7: =COUNTIFS(#REF!,"一般競争",#REF!,4,#REF!,2,#REF!,$D$1) ->  | K7: =SUMIFS(#REF!,#REF!,"一般競争",#REF!,4,#REF!,2,#REF!,$D$1) ->  | L7: =COUNTIFS(#REF!,"一般競争",#REF!,5,#REF!,2,#REF!,$D$1) ->  | M7: =SUMIFS(#REF!,#REF!,"一般競争",#REF!,5,#REF!,2,#REF!,$D$1) ->  | N7: =COUNTIFS(#REF!,"一般競争",#REF!,6,#REF!,2,#REF!,$D$1) ->  | O7: =SUMIFS(#REF!,#REF!,"一般競争",#REF!,6,#REF!,2,#REF!,$D$1) ->  | W7: =COUNTIFS(#REF!,"一般競争",#REF!,1,#REF!,2,#REF!,$D$1) ->  | X7: =SUMIFS(#REF!,#REF!,1,#REF!,"一般競争",#REF!,2,#REF!,$D$1) -> 
B8: （公共工事等） | D8: =SUM(D9:D10) ->  | W8: =SUM(W9:W10) ->  | X8: =SUM(X9:X10) -> 
B9: うち、建設工事 | D9: =COUNTIFS(#REF!,"一般競争",#REF!,1,#REF!,3,#REF!,$D$1) ->  | E9: =SUMIFS(#REF!,#REF!,"一般競争",#REF!,1,#REF!,3,#REF!,$D$1) ->  | F9: =COUNTIFS(#REF!,"一般競争",#REF!,2,#REF!,3,#REF!,$D$1) ->  | G9: =SUMIFS(#REF!,#REF!,"一般競争",#REF!,2,#REF!,3,#REF!,$D$1) ->  | H9: =COUNTIFS(#REF!,"一般競争",#REF!,3,#REF!,3,#REF!,$D$1) ->  | I9: =SUMIFS(#REF!,#REF!,"一般競争",#REF!,3,#REF!,3,#REF!,$D$1) ->  | J9: =COUNTIFS(#REF!,"一般競争",#REF!,4,#REF!,3,#REF!,$D$1) ->  | K9: =SUMIFS(#REF!,#REF!,"一般競争",#REF!,4,#REF!,3,#REF!,$D$1) ->  | L9: =COUNTIFS(#REF!,"一般競争",#REF!,5,#REF!,3,#REF!,$D$1) ->  | M9: =SUMIFS(#REF!,#REF!,"一般競争",#REF!,5,#REF!,3,#REF!,$D$1) ->  | N9: =COUNTIFS(#REF!,"一般競争",#REF!,6,#REF!,3,#REF!,$D$1) ->  | O9: =SUMIFS(#REF!,#REF!,"一般競争",#REF!,6,#REF!,3,#REF!,$D$1) ->  | W9: =COUNTIFS(#REF!,"一般競争",#REF!,1,#REF!,3,#REF!,$D$1) ->  | X9: =SUMIFS(#REF!,#REF!,1,#REF!,"一般競争",#REF!,3,#REF!,$D$1) -> 
B10: うち、コンサル | D10: =COUNTIFS(#REF!,"一般競争",#REF!,1,#REF!,4,#REF!,$D$1) ->  | E10: =SUMIFS(#REF!,#REF!,"一般競争",#REF!,1,#REF!,4,#REF!,$D$1) ->  | F10: =COUNTIFS(#REF!,"一般競争",#REF!,2,#REF!,4,#REF!,$D$1) ->  | G10: =SUMIFS(#REF!,#REF!,"一般競争",#REF!,2,#REF!,4,#REF!,$D$1) ->  | H10: =COUNTIFS(#REF!,"一般競争",#REF!,3,#REF!,4,#REF!,$D$1) ->  | I10: =SUMIFS(#REF!,#REF!,"一般競争",#REF!,3,#REF!,4,#REF!,$D$1) ->  | J10: =COUNTIFS(#REF!,"一般競争",#REF!,4,#REF!,4,#REF!,$D$1) ->  | K10: =SUMIFS(#REF!,#REF!,"一般競争",#REF!,4,#REF!,4,#REF!,$D$1) ->  | L10: =COUNTIFS(#REF!,"一般競争",#REF!,5,#REF!,4,#REF!,$D$1) ->  | M10: =SUMIFS(#REF!,#REF!,"一般競争",#REF!,5,#REF!,4,#REF!,$D$1) ->  | N10: =COUNTIFS(#REF!,"一般競争",#REF!,6,#REF!,4,#REF!,$D$1) ->  | O10: =SUMIFS(#REF!,#REF!,"一般競争",#REF!,6,#REF!,4,#REF!,$D$1) ->  | W10: =COUNTIFS(#REF!,"一般競争",#REF!,1,#REF!,4,#REF!,$D$1) ->  | X10: =SUMIFS(#REF!,#REF!,1,#REF!,"一般競争",#REF!,4,#REF!,$D$1) -> 
B11: 合計 | D11: =SUM(D5+D8) ->  | W11: =SUM(W5+W8) ->  | X11: =SUM(X5+X8) -> 
A12: 【指名競争】
B13: 競争参加資格区分 | D13: 所管公益法人 | F13: その他の公益法人 | H13: 独立行政法人等 | J13: 特殊法人等 | L13: 特定民間法人等 | N13: その他の法人等 | P13: 所管公益法人等 | R13: 所管公益法人等以外の法人等 | T13: 合計 | W13: 左記のうち、総合評価方式によるもの
D14: 件数 | E14: 金額 | F14: 件数 | G14: 金額 | H14: 件数 | I14: 金額 | J14: 件数 | K14: 金額 | L14: 件数 | M14: 金額 | N14: 件数 | O14: 金額 | P14: 件数 | Q14: 金額 | R14: 件数 | S14: 金額 | T14: 件数 | U14: 金額 | W14: 件数 | X14: 金額
B15: （物品役務等） | D15: =SUM(D16:D17) ->  | T15: =P15+R15 ->  | W15: =SUM(W16:W17) ->  | X15: =SUM(X16:X17) -> 
B16: うち、物品関係 | D16: =COUNTIFS(#REF!,"指名競争",#REF!,1,#REF!,1,#REF!,$D$1) ->  | E16: =SUMIFS(#REF!,#REF!,"指名競争",#REF!,1,#REF!,1,#REF!,$D$1) ->  | F16: =COUNTIFS(#REF!,"指名競争",#REF!,2,#REF!,1,#REF!,$D$1) ->  | G16: =SUMIFS(#REF!,#REF!,"指名競争",#REF!,2,#REF!,1,#REF!,$D$1) ->  | H16: =COUNTIFS(#REF!,"指名競争",#REF!,3,#REF!,1,#REF!,$D$1) ->  | I16: =SUMIFS(#REF!,#REF!,"指名競争",#REF!,3,#REF!,1,#REF!,$D$1) ->  | J16: =COUNTIFS(#REF!,"指名競争",#REF!,4,#REF!,1,#REF!,$D$1) ->  | K16: =SUMIFS(#REF!,#REF!,"指名競争",#REF!,4,#REF!,1,#REF!,$D$1) ->  | L16: =COUNTIFS(#REF!,"指名競争",#REF!,5,#REF!,1,#REF!,$D$1) ->  | M16: =SUMIFS(#REF!,#REF!,"指名競争",#REF!,5,#REF!,1,#REF!,$D$1) ->  | N16: =COUNTIFS(#REF!,"指名競争",#REF!,6,#REF!,1,#REF!,$D$1) ->  | O16: =SUMIFS(#REF!,#REF!,"指名競争",#REF!,6,#REF!,1,#REF!,$D$1) ->  | P16: =D16+H16+J16+L16 ->  | R16: =F16+N16 ->  | W16: =COUNTIFS(#REF!,"指名競争",#REF!,1,#REF!,1,#REF!,$D$1) ->  | X16: =SUMIFS(#REF!,#REF!,1,#REF!,"指名競争",#REF!,1,#REF!,$D$1) -> 
B17: うち、役務関係 | D17: =COUNTIFS(#REF!,"指名競争",#REF!,1,#REF!,2,#REF!,$D$1) ->  | E17: =SUMIFS(#REF!,#REF!,"指名競争",#REF!,1,#REF!,2,#REF!,$D$1) ->  | F17: =COUNTIFS(#REF!,"指名競争",#REF!,2,#REF!,2,#REF!,$D$1) ->  | G17: =SUMIFS(#REF!,#REF!,"指名競争",#REF!,2,#REF!,2,#REF!,$D$1) ->  | H17: =COUNTIFS(#REF!,"指名競争",#REF!,3,#REF!,2,#REF!,$D$1) ->  | I17: =SUMIFS(#REF!,#REF!,"指名競争",#REF!,3,#REF!,2,#REF!,$D$1) ->  | J17: =COUNTIFS(#REF!,"指名競争",#REF!,4,#REF!,2,#REF!,$D$1) ->  | K17: =SUMIFS(#REF!,#REF!,"指名競争",#REF!,4,#REF!,2,#REF!,$D$1) ->  | L17: =COUNTIFS(#REF!,"指名競争",#REF!,5,#REF!,2,#REF!,$D$1) ->  | M17: =SUMIFS(#REF!,#REF!,"指名競争",#REF!,5,#REF!,2,#REF!,$D$1) ->  | N17: =COUNTIFS(#REF!,"指名競争",#REF!,6,#REF!,2,#REF!,$D$1) ->  | O17: =SUMIFS(#REF!,#REF!,"指名競争",#REF!,6,#REF!,2,#REF!,$D$1) ->  | W17: =COUNTIFS(#REF!,"指名競争",#REF!,1,#REF!,2,#REF!,$D$1) ->  | X17: =SUMIFS(#REF!,#REF!,1,#REF!,"指名競争",#REF!,2,#REF!,$D$1) -> 
B18: （公共工事等） | D18: =SUM(D19:D20) ->  | W18: =W19+W20 ->  | X18: =X19+X20 -> 
B19: うち、建設工事 | D19: =COUNTIFS(#REF!,"指名競争",#REF!,1,#REF!,3,#REF!,$D$1) ->  | E19: =SUMIFS(#REF!,#REF!,"指名競争",#REF!,1,#REF!,3,#REF!,$D$1) ->  | F19: =COUNTIFS(#REF!,"指名競争",#REF!,2,#REF!,3,#REF!,$D$1) ->  | G19: =SUMIFS(#REF!,#REF!,"指名競争",#REF!,2,#REF!,3,#REF!,$D$1) ->  | H19: =COUNTIFS(#REF!,"指名競争",#REF!,3,#REF!,3,#REF!,$D$1) ->  | I19: =SUMIFS(#REF!,#REF!,"指名競争",#REF!,3,#REF!,3,#REF!,$D$1) ->  | J19: =COUNTIFS(#REF!,"指名競争",#REF!,4,#REF!,3,#REF!,$D$1) ->  | K19: =SUMIFS(#REF!,#REF!,"指名競争",#REF!,4,#REF!,3,#REF!,$D$1) ->  | L19: =COUNTIFS(#REF!,"指名競争",#REF!,5,#REF!,3,#REF!,$D$1) ->  | M19: =SUMIFS(#REF!,#REF!,"指名競争",#REF!,5,#REF!,3,#REF!,$D$1) ->  | N19: =COUNTIFS(#REF!,"指名競争",#REF!,6,#REF!,3,#REF!,$D$1) ->  | O19: =SUMIFS(#REF!,#REF!,"指名競争",#REF!,6,#REF!,3,#REF!,$D$1) ->  | W19: =COUNTIFS(#REF!,"指名競争",#REF!,1,#REF!,3,#REF!,$D$1) ->  | X19: =SUMIFS(#REF!,#REF!,1,#REF!,"指名競争",#REF!,3,#REF!,$D$1) -> 
B20: うち、コンサル | D20: =COUNTIFS(#REF!,"指名競争",#REF!,1,#REF!,4,#REF!,$D$1) ->  | E20: =SUMIFS(#REF!,#REF!,"指名競争",#REF!,1,#REF!,4,#REF!,$D$1) ->  | F20: =COUNTIFS(#REF!,"指名競争",#REF!,2,#REF!,4,#REF!,$D$1) ->  | G20: =SUMIFS(#REF!,#REF!,"指名競争",#REF!,2,#REF!,4,#REF!,$D$1) ->  | H20: =COUNTIFS(#REF!,"指名競争",#REF!,3,#REF!,4,#REF!,$D$1) ->  | I20: =SUMIFS(#REF!,#REF!,"指名競争",#REF!,3,#REF!,4,#REF!,$D$1) ->  | J20: =COUNTIFS(#REF!,"指名競争",#REF!,4,#REF!,4,#REF!,$D$1) ->  | K20: =SUMIFS(#REF!,#REF!,"指名競争",#REF!,4,#REF!,4,#REF!,$D$1) ->  | L20: =COUNTIFS(#REF!,"指名競争",#REF!,5,#REF!,4,#REF!,$D$1) ->  | M20: =SUMIFS(#REF!,#REF!,"指名競争",#REF!,5,#REF!,4,#REF!,$D$1) ->  | N20: =COUNTIFS(#REF!,"指名競争",#REF!,6,#REF!,4,#REF!,$D$1) ->  | O20: =SUMIFS(#REF!,#REF!,"指名競争",#REF!,6,#REF!,4,#REF!,$D$1) ->  | W20: =COUNTIFS(#REF!,"指名競争",#REF!,1,#REF!,4,#REF!,$D$1) ->  | X20: =SUMIFS(#REF!,#REF!,1,#REF!,"指名競争",#REF!,4,#REF!,$D$1) -> 
B21: 合計 | D21: =SUM(D15+D18) ->  | W21: =SUM(W15+W18) ->  | X21: =SUM(X15+X18) -> 
A22: 【随意契約】
B23: 競争参加資格区分 | D23: 所管公益法人 | F23: その他の公益法人 | H23: 独立行政法人等 | J23: 特殊法人等 | L23: 特定民間法人等 | N23: その他の法人等 | P23: 所管公益法人等 | R23: 所管公益法人等以外の法人等 | T23: 合計
D24: 件数 | E24: 金額 | F24: 件数 | G24: 金額 | H24: 件数 | I24: 金額 | J24: 件数 | K24: 金額 | L24: 件数 | M24: 金額 | N24: 件数 | O24: 金額 | P24: 件数 | Q24: 金額 | R24: 件数 | S24: 金額 | T24: 件数 | U24: 金額
B25: （物品役務等） | D25: =SUM(D26:D27) ->  | T25: =P25+R25 -> 
B26: うち、物品関係 | D26: =COUNTIFS(#REF!,"随意契約",#REF!,1,#REF!,1,#REF!,$D$1) ->  | E26: =SUMIFS(#REF!,#REF!,"随意契約",#REF!,1,#REF!,1,#REF!,$D$1) ->  | F26: =COUNTIFS(#REF!,"随意契約",#REF!,2,#REF!,1,#REF!,$D$1) ->  | G26: =SUMIFS(#REF!,#REF!,"随意契約",#REF!,2,#REF!,1,#REF!,$D$1) ->  | H26: =COUNTIFS(#REF!,"随意契約",#REF!,3,#REF!,1,#REF!,$D$1) ->  | I26: =SUMIFS(#REF!,#REF!,"随意契約",#REF!,3,#REF!,1,#REF!,$D$1) ->  | J26: =COUNTIFS(#REF!,"随意契約",#REF!,4,#REF!,1,#REF!,$D$1) ->  | K26: =SUMIFS(#REF!,#REF!,"随意契約",#REF!,4,#REF!,1,#REF!,$D$1) ->  | L26: =COUNTIFS(#REF!,"随意契約",#REF!,5,#REF!,1,#REF!,$D$1) ->  | M26: =SUMIFS(#REF!,#REF!,"随意契約",#REF!,5,#REF!,1,#REF!,$D$1) ->  | N26: =COUNTIFS(#REF!,"随意契約",#REF!,6,#REF!,1,#REF!,$D$1) ->  | O26: =SUMIFS(#REF!,#REF!,"随意契約",#REF!,6,#REF!,1,#REF!,$D$1) ->  | P26: =D26+H26+J26+L26 ->  | R26: =F26+N26 -> 
B27: うち、役務関係 | D27: =COUNTIFS(#REF!,"随意契約",#REF!,1,#REF!,2,#REF!,$D$1) ->  | E27: =SUMIFS(#REF!,#REF!,"随意契約",#REF!,1,#REF!,2,#REF!,$D$1) ->  | F27: =COUNTIFS(#REF!,"随意契約",#REF!,2,#REF!,2,#REF!,$D$1) ->  | G27: =SUMIFS(#REF!,#REF!,"随意契約",#REF!,2,#REF!,2,#REF!,$D$1) ->  | H27: =COUNTIFS(#REF!,"随意契約",#REF!,3,#REF!,2,#REF!,$D$1) ->  | I27: =SUMIFS(#REF!,#REF!,"随意契約",#REF!,3,#REF!,2,#REF!,$D$1) ->  | J27: =COUNTIFS(#REF!,"随意契約",#REF!,4,#REF!,2,#REF!,$D$1) ->  | K27: =SUMIFS(#REF!,#REF!,"随意契約",#REF!,4,#REF!,2,#REF!,$D$1) ->  | L27: =COUNTIFS(#REF!,"随意契約",#REF!,5,#REF!,2,#REF!,$D$1) ->  | M27: =SUMIFS(#REF!,#REF!,"随意契約",#REF!,5,#REF!,2,#REF!,$D$1) ->  | N27: =COUNTIFS(#REF!,"随意契約",#REF!,6,#REF!,2,#REF!,$D$1) ->  | O27: =SUMIFS(#REF!,#REF!,"随意契約",#REF!,6,#REF!,2,#REF!,$D$1) -> 
B28: （公共工事等） | D28: =SUM(D29:D30) -> 
B29: うち、建設工事 | D29: =COUNTIFS(#REF!,"随意契約",#REF!,1,#REF!,3,#REF!,$D$1) ->  | E29: =SUMIFS(#REF!,#REF!,"随意契約",#REF!,1,#REF!,3,#REF!,$D$1) ->  | F29: =COUNTIFS(#REF!,"随意契約",#REF!,2,#REF!,3,#REF!,$D$1) ->  | G29: =SUMIFS(#REF!,#REF!,"随意契約",#REF!,2,#REF!,3,#REF!,$D$1) ->  | H29: =COUNTIFS(#REF!,"随意契約",#REF!,3,#REF!,3,#REF!,$D$1) ->  | I29: =SUMIFS(#REF!,#REF!,"随意契約",#REF!,3,#REF!,3,#REF!,$D$1) ->  | J29: =COUNTIFS(#REF!,"随意契約",#REF!,4,#REF!,3,#REF!,$D$1) ->  | K29: =SUMIFS(#REF!,#REF!,"随意契約",#REF!,4,#REF!,3,#REF!,$D$1) ->  | L29: =COUNTIFS(#REF!,"随意契約",#REF!,5,#REF!,3,#REF!,$D$1) ->  | M29: =SUMIFS(#REF!,#REF!,"随意契約",#REF!,5,#REF!,3,#REF!,$D$1) ->  | N29: =COUNTIFS(#REF!,"随意契約",#REF!,6,#REF!,3,#REF!,$D$1) ->  | O29: =SUMIFS(#REF!,#REF!,"随意契約",#REF!,6,#REF!,3,#REF!,$D$1) ->  | W29: 総合計
B30: うち、コンサル | D30: =COUNTIFS(#REF!,"随意契約",#REF!,1,#REF!,4,#REF!,$D$1) ->  | E30: =SUMIFS(#REF!,#REF!,"随意契約",#REF!,1,#REF!,4,#REF!,$D$1) ->  | F30: =COUNTIFS(#REF!,"随意契約",#REF!,2,#REF!,4,#REF!,$D$1) ->  | G30: =SUMIFS(#REF!,#REF!,"随意契約",#REF!,2,#REF!,4,#REF!,$D$1) ->  | H30: =COUNTIFS(#REF!,"随意契約",#REF!,3,#REF!,4,#REF!,$D$1) ->  | I30: =SUMIFS(#REF!,#REF!,"随意契約",#REF!,3,#REF!,4,#REF!,$D$1) ->  | J30: =COUNTIFS(#REF!,"随意契約",#REF!,4,#REF!,4,#REF!,$D$1) ->  | K30: =SUMIFS(#REF!,#REF!,"随意契約",#REF!,4,#REF!,4,#REF!,$D$1) ->  | L30: =COUNTIFS(#REF!,"随意契約",#REF!,5,#REF!,4,#REF!,$D$1) ->  | M30: =SUMIFS(#REF!,#REF!,"随意契約",#REF!,5,#REF!,4,#REF!,$D$1) ->  | N30: =COUNTIFS(#REF!,"随意契約",#REF!,6,#REF!,4,#REF!,$D$1) ->  | O30: =SUMIFS(#REF!,#REF!,"随意契約",#REF!,6,#REF!,4,#REF!,$D$1) ->  | W30: 件数 | X30: 金額
B31: 合計 | D31: =SUM(D25+D28) ->  | W31: =T11+T21+T31 ->  | X31: =U11+U21+U31 -> 
C33: 随意契約（根拠内訳） | D33: 所管公益法人 | F33: その他の公益法人 | H33: 独立行政法人等 | J33: 特殊法人等 | L33: 特定民間法人等 | N33: その他の法人等 | P33: 所管公益法人等 | R33: 所管公益法人等以外の法人等 | T33: 合計
D34: 件数 | E34: 金額 | F34: 件数 | G34: 金額 | H34: 件数 | I34: 金額 | J34: 件数 | K34: 金額 | L34: 件数 | M34: 金額 | N34: 件数 | O34: 金額 | P34: 件数 | Q34: 金額 | R34: 件数 | S34: 金額 | T34: 件数 | U34: 金額
C35: 契約の性質又は目的が競争を許さない場合 | D35: =SUM(COUNTIFS(#REF!,1,#REF!,1,#REF!,$D$1)) ->  | E35: =SUMIFS(#REF!,#REF!,1,#REF!,1,#REF!,$D$1) ->  | F35: =SUM(COUNTIFS(#REF!,2,#REF!,1,#REF!,$D$1)) ->  | G35: =SUMIFS(#REF!,#REF!,2,#REF!,1,#REF!,$D$1) ->  | H35: =SUM(COUNTIFS(#REF!,3,#REF!,1,#REF!,$D$1)) ->  | I35: =SUMIFS(#REF!,#REF!,3,#REF!,1,#REF!,$D$1) ->  | J35: =SUM(COUNTIFS(#REF!,4,#REF!,1,#REF!,$D$1)) ->  | K35: =SUMIFS(#REF!,#REF!,4,#REF!,1,#REF!,$D$1) ->  | L35: =SUM(COUNTIFS(#REF!,5,#REF!,1,#REF!,$D$1)) ->  | M35: =SUMIFS(#REF!,#REF!,5,#REF!,1,#REF!,$D$1) ->  | N35: =SUM(COUNTIFS(#REF!,6,#REF!,1,#REF!,$D$1)) ->  | O35: =SUMIFS(#REF!,#REF!,6,#REF!,1,#REF!,$D$1) ->  | P35: =D35+H35+J35+L35 ->  | R35: =F35+N35 ->  | T35: =P35+R35 -> 
C36: 緊急の必要により競争に付することができない場合 | D36: =SUM(COUNTIFS(#REF!,1,#REF!,2,#REF!,$D$1)) ->  | E36: =SUMIFS(#REF!,#REF!,1,#REF!,2,#REF!,$D$1) ->  | F36: =SUM(COUNTIFS(#REF!,2,#REF!,2,#REF!,$D$1)) ->  | G36: =SUMIFS(#REF!,#REF!,2,#REF!,2,#REF!,$D$1) ->  | H36: =SUM(COUNTIFS(#REF!,3,#REF!,2,#REF!,$D$1)) ->  | I36: =SUMIFS(#REF!,#REF!,3,#REF!,2,#REF!,$D$1) ->  | J36: =SUM(COUNTIFS(#REF!,4,#REF!,2,#REF!,$D$1)) ->  | K36: =SUMIFS(#REF!,#REF!,4,#REF!,2,#REF!,$D$1) ->  | L36: =SUM(COUNTIFS(#REF!,5,#REF!,2,#REF!,$D$1)) ->  | M36: =SUMIFS(#REF!,#REF!,5,#REF!,2,#REF!,$D$1) ->  | N36: =SUM(COUNTIFS(#REF!,6,#REF!,2,#REF!,$D$1)) ->  | O36: =SUMIFS(#REF!,#REF!,6,#REF!,2,#REF!,$D$1) -> 
C37: 競争に付することが不利と認められる場合 | D37: =SUM(COUNTIFS(#REF!,1,#REF!,3,#REF!,$D$1)) ->  | E37: =SUMIFS(#REF!,#REF!,1,#REF!,3,#REF!,$D$1) ->  | F37: =SUM(COUNTIFS(#REF!,2,#REF!,3,#REF!,$D$1)) ->  | G37: =SUMIFS(#REF!,#REF!,2,#REF!,3,#REF!,$D$1) ->  | H37: =SUM(COUNTIFS(#REF!,3,#REF!,3,#REF!,$D$1)) ->  | I37: =SUMIFS(#REF!,#REF!,3,#REF!,3,#REF!,$D$1) ->  | J37: =SUM(COUNTIFS(#REF!,4,#REF!,3,#REF!,$D$1)) ->  | K37: =SUMIFS(#REF!,#REF!,4,#REF!,3,#REF!,$D$1) ->  | L37: =SUM(COUNTIFS(#REF!,5,#REF!,3,#REF!,$D$1)) ->  | M37: =SUMIFS(#REF!,#REF!,5,#REF!,3,#REF!,$D$1) ->  | N37: =SUM(COUNTIFS(#REF!,6,#REF!,3,#REF!,$D$1)) ->  | O37: =SUMIFS(#REF!,#REF!,6,#REF!,3,#REF!,$D$1) -> 
C38: 予決令第99条の2又は第99条の3による随意契約（不落随意契約、不調随意契約） | D38: =SUM(COUNTIFS(#REF!,1,#REF!,4,#REF!,$D$1)) ->  | E38: =SUMIFS(#REF!,#REF!,1,#REF!,4,#REF!,$D$1) ->  | F38: =SUM(COUNTIFS(#REF!,2,#REF!,4,#REF!,$D$1)) ->  | G38: =SUMIFS(#REF!,#REF!,2,#REF!,4,#REF!,$D$1) ->  | H38: =SUM(COUNTIFS(#REF!,3,#REF!,4,#REF!,$D$1)) ->  | I38: =SUMIFS(#REF!,#REF!,3,#REF!,4,#REF!,$D$1) ->  | J38: =SUM(COUNTIFS(#REF!,4,#REF!,4,#REF!,$D$1)) ->  | K38: =SUMIFS(#REF!,#REF!,4,#REF!,4,#REF!,$D$1) ->  | L38: =SUM(COUNTIFS(#REF!,5,#REF!,4,#REF!,$D$1)) ->  | M38: =SUMIFS(#REF!,#REF!,5,#REF!,4,#REF!,$D$1) ->  | N38: =SUM(COUNTIFS(#REF!,6,#REF!,4,#REF!,$D$1)) ->  | O38: =SUMIFS(#REF!,#REF!,6,#REF!,4,#REF!,$D$1) -> 
C39: 特例政令に該当する場合 | D39: =SUM(COUNTIFS(#REF!,1,#REF!,5,#REF!,$D$1)) ->  | E39: =SUMIFS(#REF!,#REF!,1,#REF!,5,#REF!,$D$1) ->  | F39: =SUM(COUNTIFS(#REF!,2,#REF!,5,#REF!,$D$1)) ->  | G39: =SUMIFS(#REF!,#REF!,2,#REF!,5,#REF!,$D$1) ->  | H39: =SUM(COUNTIFS(#REF!,3,#REF!,5,#REF!,$D$1)) ->  | I39: =SUMIFS(#REF!,#REF!,3,#REF!,5,#REF!,$D$1) ->  | J39: =SUM(COUNTIFS(#REF!,4,#REF!,5,#REF!,$D$1)) ->  | K39: =SUMIFS(#REF!,#REF!,4,#REF!,5,#REF!,$D$1) ->  | L39: =SUM(COUNTIFS(#REF!,5,#REF!,5,#REF!,$D$1)) ->  | M39: =SUMIFS(#REF!,#REF!,5,#REF!,5,#REF!,$D$1) ->  | N39: =SUM(COUNTIFS(#REF!,6,#REF!,5,#REF!,$D$1)) ->  | O39: =SUMIFS(#REF!,#REF!,6,#REF!,5,#REF!,$D$1) -> 
C40: その他 | D40: =SUM(COUNTIFS(#REF!,1,#REF!,6,#REF!,$D$1)) ->  | E40: =SUMIFS(#REF!,#REF!,1,#REF!,6,#REF!,$D$1) ->  | F40: =SUM(COUNTIFS(#REF!,2,#REF!,6,#REF!,$D$1)) ->  | G40: =SUMIFS(#REF!,#REF!,2,#REF!,6,#REF!,$D$1) ->  | H40: =SUM(COUNTIFS(#REF!,3,#REF!,6,#REF!,$D$1)) ->  | I40: =SUMIFS(#REF!,#REF!,3,#REF!,6,#REF!,$D$1) ->  | J40: =SUM(COUNTIFS(#REF!,4,#REF!,6,#REF!,$D$1)) ->  | K40: =SUMIFS(#REF!,#REF!,4,#REF!,6,#REF!,$D$1) ->  | L40: =SUM(COUNTIFS(#REF!,5,#REF!,6,#REF!,$D$1)) ->  | M40: =SUMIFS(#REF!,#REF!,5,#REF!,6,#REF!,$D$1) ->  | N40: =SUM(COUNTIFS(#REF!,6,#REF!,6,#REF!,$D$1)) ->  | O40: =SUMIFS(#REF!,#REF!,6,#REF!,6,#REF!,$D$1) -> 
C41: 予決令第99条第1号による随意契約 （秘密随意契約） | D41: =SUM(COUNTIFS(#REF!,1,#REF!,7,#REF!,$D$1)) ->  | E41: =SUMIFS(#REF!,#REF!,1,#REF!,7,#REF!,$D$1) ->  | F41: =SUM(COUNTIFS(#REF!,2,#REF!,7,#REF!,$D$1)) ->  | G41: =SUMIFS(#REF!,#REF!,2,#REF!,7,#REF!,$D$1) ->  | H41: =SUM(COUNTIFS(#REF!,3,#REF!,7,#REF!,$D$1)) ->  | I41: =SUMIFS(#REF!,#REF!,3,#REF!,7,#REF!,$D$1) ->  | J41: =SUM(COUNTIFS(#REF!,4,#REF!,7,#REF!,$D$1)) ->  | K41: =SUMIFS(#REF!,#REF!,4,#REF!,7,#REF!,$D$1) ->  | L41: =SUM(COUNTIFS(#REF!,5,#REF!,7,#REF!,$D$1)) ->  | M41: =SUMIFS(#REF!,#REF!,5,#REF!,7,#REF!,$D$1) ->  | N41: =SUM(COUNTIFS(#REF!,6,#REF!,7,#REF!,$D$1)) ->  | O41: =SUMIFS(#REF!,#REF!,6,#REF!,7,#REF!,$D$1) -> 
C42: 合計 | D42: =SUM(D35:D41) -> 
C44: 相手方特定方法内訳 | D44: 所管公益法人 | F44: その他の公益法人 | H44: 独立行政法人等 | J44: 特殊法人等 | L44: 特定民間法人等 | N44: その他の法人等 | P44: 所管公益法人等 | R44: 所管公益法人等以外の法人等 | T44: 合計
D45: 件数 | E45: 金額 | F45: 件数 | G45: 金額 | H45: 件数 | I45: 金額 | J45: 件数 | K45: 金額 | L45: 件数 | M45: 金額 | N45: 件数 | O45: 金額 | P45: 件数 | Q45: 金額 | R45: 件数 | S45: 金額 | T45: 件数 | U45: 金額
C46: 企画競争（プロポーザルも含む）を実施したもの | D46: =COUNTIFS(#REF!,1,#REF!,1,#REF!,$D$1)+COUNTIFS(#REF!,1,#REF!,2,#REF!,$D$1) ->  | E46: =SUMIFS(#REF!,#REF!,1,#REF!,1,#REF!,$D$1)+SUMIFS(#REF!,#REF!,1,#REF!,2,#REF!,$D$1) ->  | F46: =COUNTIFS(#REF!,2,#REF!,1,#REF!,$D$1)+COUNTIFS(#REF!,2,#REF!,2,#REF!,$D$1) ->  | G46: =SUMIFS(#REF!,#REF!,2,#REF!,1,#REF!,$D$1)+SUMIFS(#REF!,#REF!,2,#REF!,2,#REF!,$D$1) ->  | H46: =COUNTIFS(#REF!,3,#REF!,1,#REF!,$D$1)+COUNTIFS(#REF!,3,#REF!,2,#REF!,$D$1) ->  | I46: =SUMIFS(#REF!,#REF!,3,#REF!,1,#REF!,$D$1)+SUMIFS(#REF!,#REF!,3,#REF!,2,#REF!,$D$1) ->  | J46: =COUNTIFS(#REF!,4,#REF!,1,#REF!,$D$1)+COUNTIFS(#REF!,4,#REF!,2,#REF!,$D$1) ->  | K46: =SUMIFS(#REF!,#REF!,4,#REF!,1,#REF!,$D$1)+SUMIFS(#REF!,#REF!,4,#REF!,2,#REF!,$D$1) ->  | L46: =COUNTIFS(#REF!,5,#REF!,1,#REF!,$D$1)+COUNTIFS(#REF!,5,#REF!,2,#REF!,$D$1) ->  | M46: =SUMIFS(#REF!,#REF!,5,#REF!,1,#REF!,$D$1)+SUMIFS(#REF!,#REF!,5,#REF!,2,#REF!,$D$1) ->  | N46: =COUNTIFS(#REF!,6,#REF!,1,#REF!,$D$1)+COUNTIFS(#REF!,6,#REF!,2,#REF!,$D$1) ->  | O46: =SUMIFS(#REF!,#REF!,6,#REF!,1,#REF!,$D$1)+SUMIFS(#REF!,#REF!,6,#REF!,2,#REF!,$D$1) ->  | P46: =D46+H46+J46+L46 ->  | Q46: =E46+I46+K46+M46 ->  | R46: =F46+N46 ->  | S46: =G46+O46 ->  | T46: =P46+R46 ->  | U46: =Q46+S46 -> 
C47: 公募を実施したもの | D47: =COUNTIFS(#REF!,1,#REF!,3,#REF!,$D$1) ->  | E47: =SUMIFS(#REF!,#REF!,1,#REF!,3,#REF!,$D$1) ->  | F47: =COUNTIFS(#REF!,2,#REF!,3,#REF!,$D$1) ->  | G47: =SUMIFS(#REF!,#REF!,2,#REF!,3,#REF!,$D$1) ->  | H47: =COUNTIFS(#REF!,3,#REF!,3,#REF!,$D$1) ->  | I47: =SUMIFS(#REF!,#REF!,3,#REF!,3,#REF!,$D$1) ->  | J47: =COUNTIFS(#REF!,4,#REF!,3,#REF!,$D$1) ->  | K47: =SUMIFS(#REF!,#REF!,4,#REF!,3,#REF!,$D$1) ->  | L47: =COUNTIFS(#REF!,5,#REF!,3,#REF!,$D$1) ->  | M47: =SUMIFS(#REF!,#REF!,5,#REF!,3,#REF!,$D$1) ->  | N47: =COUNTIFS(#REF!,6,#REF!,3,#REF!,$D$1) ->  | O47: =SUMIFS(#REF!,#REF!,6,#REF!,3,#REF!,$D$1) ->  | P47: =D47+H47+J47+L47 ->  | Q47: =E47+I47+K47+M47 ->  | R47: =F47+N47 ->  | S47: =G47+O47 ->  | T47: =P47+R47 ->  | U47: =Q47+S47 -> 
C48: 合計 | D48: =SUM(D46:D47) -> 

Sheet 参考資料 (hidden)
B1: 部局： | C1: **
A2: 【調達の全体像】
A3: 契約方式の区分 | C3: 公共工事等 | E3: 物品役務等 | G3: 合計
C4: 件数 | D4: 金額（円） | E4: 件数 | F4: 金額（円） | G4: 件数 | H4: 金額（円）
A5: 競争性のある契約 | C5: =SUM(C6:C8) ->  | D5: =SUM(D6:D8) ->  | E5: =SUM(E6:E8) ->  | F5: =SUM(F6:F8) ->  | G5: =C5+E5 -> 
A6: 一般競争 | C6: =COUNTIFS(#REF!,"一般競争",#REF!,3,#REF!,$C$1)+COUNTIFS(#REF!,"一般競争",#REF!,4,#REF!,$C$1) ->  | D6: =SUMIFS(#REF!,#REF!,"一般競争",#REF!,3,#REF!,$C$1)+SUMIFS(#REF!,#REF!,"一般競争",#REF!,4,#REF!,$C$1) ->  | E6: =COUNTIFS(#REF!,"一般競争",#REF!,1,#REF!,$C$1)+COUNTIFS(#REF!,"一般競争",#REF!,2,#REF!,$C$1) ->  | F6: =SUMIFS(#REF!,#REF!,"一般競争",#REF!,1,#REF!,$C$1)+SUMIFS(#REF!,#REF!,"一般競争",#REF!,2,#REF!,$C$1) -> 
A7: 指名競争 | C7: =COUNTIFS(#REF!,"指名競争",#REF!,3,#REF!,$C$1)+COUNTIFS(#REF!,"指名競争",#REF!,4,#REF!,$C$1) ->  | D7: =SUMIFS(#REF!,#REF!,"指名競争",#REF!,3,#REF!,$C$1)+SUMIFS(#REF!,#REF!,"指名競争",#REF!,4,#REF!,$C$1) ->  | E7: =COUNTIFS(#REF!,"指名競争",#REF!,1,#REF!,$C$1)+COUNTIFS(#REF!,"指名競争",#REF!,2,#REF!,$C$1) ->  | F7: =SUMIFS(#REF!,#REF!,"指名競争",#REF!,1,#REF!,$C$1)+SUMIFS(#REF!,#REF!,"指名競争",#REF!,2,#REF!,$C$1) -> 
A8: 競争性のある随意契約 | C8: =SUM(C9:C11) ->  | D8: =SUM(D9:D11) ->  | E8: =SUM(E9:E11) ->  | F8: =SUM(F9:F11) -> 
A9: うち、不調・不落随意契約 | C9: =COUNTIFS(#REF!,"随意契約",#REF!,4,#REF!,3,#REF!,$C$1)+COUNTIFS(#REF!,"随意契約",#REF!,4,#REF!,4,#REF!,$C$1) ->  | D9: =SUMIFS(#REF!,#REF!,"随意契約",#REF!,4,#REF!,3,#REF!,$C$1)+SUMIFS(#REF!,#REF!,"随意契約",#REF!,4,#REF!,4,#REF!,$C$1) ->  | E9: =COUNTIFS(#REF!,"随意契約",#REF!,4,#REF!,1,#REF!,$C$1)+COUNTIFS(#REF!,"随意契約",#REF!,4,#REF!,2,#REF!,$C$1) ->  | F9: =SUMIFS(#REF!,#REF!,"随意契約",#REF!,4,#REF!,1,#REF!,$C$1)+SUMIFS(#REF!,#REF!,"随意契約",#REF!,4,#REF!,2,#REF!,$C$1) -> 
A10: うち、企画競争を実施（プロポ含む） | C10: =COUNTIFS(#REF!,"随意契約",#REF!,"1",#REF!,3,#REF!,$C$1)+COUNTIFS(#REF!,"随意契約",#REF!,"2",#REF!,3,#REF!,$C$1)+COUNTIFS(#REF!,"随意契約",#REF!,"1",#REF!,4,#REF!,$C$1)+COUNTIFS(#REF!,"随意契約",#REF!,"2",#REF!,4,#REF!,$C$1) ->  | D10: =SUMIFS(#REF!,#REF!,"随意契約",#REF!,"1",#REF!,3,#REF!,$C$1)+SUMIFS(#REF!,#REF!,"随意契約",#REF!,"2",#REF!,3,#REF!,$C$1)+SUMIFS(#REF!,#REF!,"随意契約",#REF!,"1",#REF!,4,#REF!,$C$1)+SUMIFS(#REF!,#REF!,"随意契約",#REF!,"2",#REF!,4,#REF!,$C$1) ->  | E10: =COUNTIFS(#REF!,"随意契約",#REF!,"1",#REF!,1,#REF!,$C$1)+COUNTIFS(#REF!,"随意契約",#REF!,"2",#REF!,1,#REF!,$C$1)+COUNTIFS(#REF!,"随意契約",#REF!,"1",#REF!,2,#REF!,$C$1)+COUNTIFS(#REF!,"随意契約",#REF!,"2",#REF!,2,#REF!,$C$1) ->  | F10: =SUMIFS(#REF!,#REF!,"随意契約",#REF!,"1",#REF!,1,#REF!,$C$1)+SUMIFS(#REF!,#REF!,"随意契約",#REF!,"2",#REF!,1,#REF!,$C$1)+SUMIFS(#REF!,#REF!,"随意契約",#REF!,"1",#REF!,2,#REF!,$C$1)+SUMIFS(#REF!,#REF!,"随意契約",#REF!,"2",#REF!,2,#REF!,$C$1) -> 
A11: うち、公募を実施 | C11: =COUNTIFS(#REF!,"随意契約",#REF!,"3",#REF!,3,#REF!,$C$1)+COUNTIFS(#REF!,"随意契約",#REF!,"3",#REF!,4,#REF!,$C$1) ->  | D11: =SUMIFS(#REF!,#REF!,"随意契約",#REF!,"3",#REF!,3,#REF!,$C$1)+SUMIFS(#REF!,#REF!,"随意契約",#REF!,"3",#REF!,4,#REF!,$C$1) ->  | E11: =COUNTIFS(#REF!,"随意契約",#REF!,"3",#REF!,1,#REF!,$C$1)+COUNTIFS(#REF!,"随意契約",#REF!,"3",#REF!,2,#REF!,$C$1) ->  | F11: =SUMIFS(#REF!,#REF!,"随意契約",#REF!,"3",#REF!,1,#REF!,$C$1)+SUMIFS(#REF!,#REF!,"随意契約",#REF!,"3",#REF!,2,#REF!,$C$1) -> 
A12: 競争性のない随意契約 | C12: =COUNTIFS(#REF!,"随意契約",#REF!,3,#REF!,$C$1)+COUNTIFS(#REF!,"随意契約",#REF!,4,#REF!,$C$1)-参考資料!C8 ->  | D12: =SUMIFS(#REF!,#REF!,"随意契約",#REF!,3,#REF!,$C$1)+SUMIFS(#REF!,#REF!,"随意契約",#REF!,4,#REF!,$C$1)-参考資料!D8 ->  | E12: =COUNTIFS(#REF!,"随意契約",#REF!,1,#REF!,$C$1)+COUNTIFS(#REF!,"随意契約",#REF!,2,#REF!,$C$1)-参考資料!E8 ->  | F12: =SUMIFS(#REF!,#REF!,"随意契約",#REF!,1,#REF!,$C$1)+SUMIFS(#REF!,#REF!,"随意契約",#REF!,2,#REF!,$C$1)-参考資料!F8 ->  | J12: ↓個表合計↓
A13: 合計 | C13: =C5+C12 ->  | D13: =D5+D12 ->  | E13: =E5+E12 ->  | F13: =F5+F12 ->  | J13: =#REF! ->  | K13: =#REF! -> 
A14: ※競争性のない随意契約 ・・・・不落･不調随意契約並びに企画競争及び公募を実施した随意契約以外の随意契約（少額随契を除く）。
B15: 競争性あり/全体 | C15: =C5/C13 -> 
B16: 競争性なし/全体 | C16: =C12/C13 -> 
B17: 競争性なし/競争性あり | C17: =C12/C5 -> 
A19: 【契約時期の分析】 | I19: （単位：円）
A20: 契約方式の区分 | C20: 第１四半期 | D20: 第２四半期 | E20: 第３四半期 | F20: 第４四半期 | G20: その他 | I20: 合計
C21: 4/1～6/30契約 | D21: 7/1～9/30契約 | E21: 10/1～12/31契約 | F21: 1/1～3/31契約 | G21: 長期継続契約 | H21: 契約時期が不明確なもの
A22: 競争性のある契約 | C22: =C24+C26+C28 ->  | I22: =SUM(C22:H22) -> 
A24: 一般競争 | C24: =COUNTIFS(#REF!,$A$24,#REF!,">=2020/4/1",#REF!,"<=2020/6/30",#REF!,"<>長期",#REF!,$C$1) ->  | D24: =COUNTIFS(#REF!,$A$24,#REF!,">=2020/7/1",#REF!,"<=2020/9/30",#REF!,"<>長期",#REF!,$C$1) ->  | E24: =COUNTIFS(#REF!,$A$24,#REF!,">=2020/10/1",#REF!,"<=2020/12/31",#REF!,"<>長期",#REF!,$C$1) ->  | F24: =COUNTIFS(#REF!,$A$24,#REF!,">=2021/1/1",#REF!,"<=2021/3/31",#REF!,"<>長期",#REF!,$C$1) ->  | G24: =COUNTIFS(#REF!,$A$24,#REF!,">=2020/4/1",#REF!,"<=2021/3/31",#REF!,"長期",#REF!,$C$1) ->  | H24: =$G$6-(C24+D24+E24+F24+G24) -> 
C25: =SUMIFS(#REF!,#REF!,$A$24,#REF!,">=2020/4/1",#REF!,"<=2020/6/30",#REF!,"<>長期",#REF!,$C$1) ->  | D25: =SUMIFS(#REF!,#REF!,$A$24,#REF!,">=2020/7/1",#REF!,"<=2020/9/30",#REF!,"<>長期",#REF!,$C$1) ->  | E25: =SUMIFS(#REF!,#REF!,$A$24,#REF!,">=2020/10/1",#REF!,"<=2020/12/31",#REF!,"<>長期",#REF!,$C$1) ->  | F25: =SUMIFS(#REF!,#REF!,$A$24,#REF!,">=2021/1/1",#REF!,"<=2021/3/31",#REF!,"<>長期",#REF!,$C$1) ->  | G25: =SUMIFS(#REF!,#REF!,$A$24,#REF!,">=2020/4/1",#REF!,"<=2021/3/31",#REF!,"長期",#REF!,$C$1) ->  | H25: =$H$6-(C25+D25+E25+F25+G25) -> 
A26: 指名競争 | C26: =COUNTIFS(#REF!,$A$26,#REF!,">=2020/4/1",#REF!,"<=2020/6/30",#REF!,"<>長期",#REF!,$C$1) ->  | D26: =COUNTIFS(#REF!,$A$26,#REF!,">=2020/7/1",#REF!,"<=2020/9/30",#REF!,"<>長期",#REF!,$C$1) ->  | E26: =COUNTIFS(#REF!,$A$26,#REF!,">=2020/10/1",#REF!,"<=2020/12/31",#REF!,"<>長期",#REF!,$C$1) ->  | F26: =COUNTIFS(#REF!,$A$26,#REF!,">=2021/1/1",#REF!,"<=2021/3/31",#REF!,"<>長期",#REF!,$C$1) ->  | G26: =COUNTIFS(#REF!,$A$26,#REF!,">=2020/4/1",#REF!,"<=2021/3/31",#REF!,"長期",#REF!,$C$1) ->  | H26: =G7-(C26+D26+E26+F26+G26) -> 
C27: =SUMIFS(#REF!,#REF!,$A$26,#REF!,">=2020/4/1",#REF!,"<=2020/6/30",#REF!,"<>長期",#REF!,$C$1) ->  | D27: =SUMIFS(#REF!,#REF!,$A$26,#REF!,">=2020/7/1",#REF!,"<=2020/9/30",#REF!,"<>長期",#REF!,$C$1) ->  | E27: =SUMIFS(#REF!,#REF!,$A$26,#REF!,">=2020/10/1",#REF!,"<=2020/12/31",#REF!,"<>長期",#REF!,$C$1) ->  | F27: =SUMIFS(#REF!,#REF!,$A$26,#REF!,">=2021/1/1",#REF!,"<=2021/3/31",#REF!,"<>長期",#REF!,$C$1) ->  | G27: =SUMIFS(#REF!,#REF!,$A$26,#REF!,">=2020/4/1",#REF!,"<=2021/3/31",#REF!,"長期",#REF!,$C$1) ->  | H27: =H7-(C27+D27+E27+F27+G27) -> 
A28: 競争性のある随意契約 | C28: =C30+C32+C34 -> 
A30: うち、不調・不落随意契約 | C30: =COUNTIFS(#REF!,"随意契約",#REF!,4,#REF!,">=2020/4/1",#REF!,"<=2020/6/30",#REF!,"<>長期",#REF!,$C$1) ->  | D30: =COUNTIFS(#REF!,"随意契約",#REF!,4,#REF!,">=2020/7/1",#REF!,"<=2020/9/30",#REF!,"<>長期",#REF!,$C$1) ->  | E30: =COUNTIFS(#REF!,"随意契約",#REF!,4,#REF!,">=2020/10/1",#REF!,"<=2020/12/31",#REF!,"<>長期",#REF!,$C$1) ->  | F30: =COUNTIFS(#REF!,"随意契約",#REF!,4,#REF!,">=2021/1/1",#REF!,"<=2021/3/31",#REF!,"<>長期",#REF!,$C$1) ->  | G30: =COUNTIFS(#REF!,"随意契約",#REF!,4,#REF!,">=2020/4/1",#REF!,"<=2021/3/31",#REF!,"長期",#REF!,$C$1) ->  | H30: =G9-(C30+D30+E30+F30+G30) -> 
C31: =SUMIFS(#REF!,#REF!,"随意契約",#REF!,4,#REF!,">=2020/4/1",#REF!,"<=2020/6/30",#REF!,"<>長期",#REF!,$C$1) ->  | D31: =SUMIFS(#REF!,#REF!,"随意契約",#REF!,4,#REF!,">=2020/7/1",#REF!,"<=2020/9/30",#REF!,"<>長期",#REF!,$C$1) ->  | E31: =SUMIFS(#REF!,#REF!,"随意契約",#REF!,4,#REF!,">=2020/10/1",#REF!,"<=2020/12/31",#REF!,"<>長期",#REF!,$C$1) ->  | F31: =SUMIFS(#REF!,#REF!,"随意契約",#REF!,4,#REF!,">=2021/1/1",#REF!,"<=2021/3/31",#REF!,"<>長期",#REF!,$C$1) ->  | G31: =SUMIFS(#REF!,#REF!,"随意契約",#REF!,4,#REF!,">=2020/4/1",#REF!,"<=2021/3/31",#REF!,"長期",#REF!,$C$1) ->  | H31: =H9-(C31+D31+E31+F31+G31) -> 
A32: うち、企画競争を実施（プロポ含む） | C32: =COUNTIFS(#REF!,"随意契約",#REF!,"1",#REF!,">=2020/4/1",#REF!,"<=2020/6/30",#REF!,"<>長期",#REF!,$C$1)+COUNTIFS(#REF!,"随意契約",#REF!,"2",#REF!,">=2020/4/1",#REF!,"<=2020/6/30",#REF!,"<>長期",#REF!,$C$1) ->  | D32: =COUNTIFS(#REF!,"随意契約",#REF!,"1",#REF!,">=2020/7/1",#REF!,"<=2020/9/30",#REF!,"<>長期",#REF!,$C$1)+COUNTIFS(#REF!,"随意契約",#REF!,"2",#REF!,">=2020/7/1",#REF!,"<=2020/9/30",#REF!,"<>長期",#REF!,$C$1) ->  | E32: =COUNTIFS(#REF!,"随意契約",#REF!,"1",#REF!,">=2020/10/1",#REF!,"<=2020/12/31",#REF!,"<>長期",#REF!,$C$1)+COUNTIFS(#REF!,"随意契約",#REF!,"2",#REF!,">=2020/10/1",#REF!,"<=2020/12/31",#REF!,"<>長期",#REF!,$C$1) ->  | F32: =COUNTIFS(#REF!,"随意契約",#REF!,"1",#REF!,">=2021/1/1",#REF!,"<=2021/3/31",#REF!,"<>長期",#REF!,$C$1)+COUNTIFS(#REF!,"随意契約",#REF!,"2",#REF!,">=2021/1/1",#REF!,"<=2021/3/31",#REF!,"<>長期",#REF!,$C$1) ->  | G32: =COUNTIFS(#REF!,"随意契約",#REF!,"1",#REF!,">=2020/4/1",#REF!,"<=2021/3/31",#REF!,"長期",#REF!,$C$1)+COUNTIFS(#REF!,"随意契約",#REF!,"2",#REF!,">=2020/4/1",#REF!,"<=2021/3/31",#REF!,"長期",#REF!,$C$1) ->  | H32: =G10-(C32+D32+E32+F32+G32) -> 
C33: =SUMIFS(#REF!,#REF!,"随意契約",#REF!,"1",#REF!,">=2020/4/1",#REF!,"<=2020/6/30",#REF!,"<>長期",#REF!,$C$1)+SUMIFS(#REF!,#REF!,"随意契約",#REF!,"2",#REF!,">=2020/4/1",#REF!,"<=2020/6/30",#REF!,"<>長期",#REF!,$C$1) ->  | D33: =SUMIFS(#REF!,#REF!,"随意契約",#REF!,"1",#REF!,">=2020/7/1",#REF!,"<=2020/9/30",#REF!,"<>長期",#REF!,$C$1)+SUMIFS(#REF!,#REF!,"随意契約",#REF!,"2",#REF!,">=2020/7/1",#REF!,"<=2020/9/30",#REF!,"<>長期",#REF!,$C$1) ->  | E33: =SUMIFS(#REF!,#REF!,"随意契約",#REF!,"1",#REF!,">=2020/10/1",#REF!,"<=2020/12/31",#REF!,"<>長期",#REF!,$C$1)+SUMIFS(#REF!,#REF!,"随意契約",#REF!,"2",#REF!,">=2020/10/1",#REF!,"<=2020/12/31",#REF!,"<>長期",#REF!,$C$1) ->  | F33: =SUMIFS(#REF!,#REF!,"随意契約",#REF!,"1",#REF!,">=2021/1/1",#REF!,"<=2021/3/31",#REF!,"<>長期",#REF!,$C$1)+SUMIFS(#REF!,#REF!,"随意契約",#REF!,"2",#REF!,">=2021/1/1",#REF!,"<=2021/3/31",#REF!,"<>長期",#REF!,$C$1) ->  | G33: =SUMIFS(#REF!,#REF!,"随意契約",#REF!,"1",#REF!,">=2020/4/1",#REF!,"<=2021/3/31",#REF!,"長期",#REF!,$C$1)+SUMIFS(#REF!,#REF!,"随意契約",#REF!,"2",#REF!,">=2020/4/1",#REF!,"<=2021/3/31",#REF!,"長期",#REF!,$C$1) ->  | H33: =H10-(C33+D33+E33+F33+G33) -> 
A34: うち、公募を実施 | C34: =COUNTIFS(#REF!,"随意契約",#REF!,"3",#REF!,">=2020/4/1",#REF!,"<=2020/6/30",#REF!,"<>長期",#REF!,$C$1) ->  | D34: =COUNTIFS(#REF!,"随意契約",#REF!,"3",#REF!,">=2020/7/1",#REF!,"<=2020/9/30",#REF!,"<>長期",#REF!,$C$1) ->  | E34: =COUNTIFS(#REF!,"随意契約",#REF!,"3",#REF!,">=2020/10/1",#REF!,"<=2020/12/31",#REF!,"<>長期",#REF!,$C$1) ->  | F34: =COUNTIFS(#REF!,"随意契約",#REF!,"3",#REF!,">=2021/1/1",#REF!,"<=2021/3/31",#REF!,"<>長期",#REF!,$C$1) ->  | G34: =COUNTIFS(#REF!,"随意契約",#REF!,"3",#REF!,">=2020/4/1",#REF!,"<=2021/3/31",#REF!,"長期",#REF!,$C$1) ->  | H34: =G11-(C34+D34+E34+F34+G34) -> 
C35: =SUMIFS(#REF!,#REF!,"随意契約",#REF!,"3",#REF!,">=2020/4/1",#REF!,"<=2020/6/30",#REF!,"<>長期",#REF!,$C$1) ->  | D35: =SUMIFS(#REF!,#REF!,"随意契約",#REF!,"3",#REF!,">=2020/7/1",#REF!,"<=2020/9/30",#REF!,"<>長期",#REF!,$C$1) ->  | E35: =SUMIFS(#REF!,#REF!,"随意契約",#REF!,"3",#REF!,">=2020/10/1",#REF!,"<=2020/12/31",#REF!,"<>長期",#REF!,$C$1) ->  | F35: =SUMIFS(#REF!,#REF!,"随意契約",#REF!,"3",#REF!,">=2021/1/1",#REF!,"<=2021/3/31",#REF!,"<>長期",#REF!,$C$1) ->  | G35: =SUMIFS(#REF!,#REF!,"随意契約",#REF!,"3",#REF!,">=2020/4/1",#REF!,"<=2021/3/31",#REF!,"長期",#REF!,$C$1) ->  | H35: =H11-(C35+D35+E35+F35+G35) -> 
A36: 競争性のない随意契約 | C36: =C38-C22 -> 
A38: 合計 | C38: =COUNTIFS(#REF!,">=2020/4/1",#REF!,"<=2020/6/30",#REF!,"<>長期",#REF!,$C$1) ->  | D38: =COUNTIFS(#REF!,">=2020/7/1",#REF!,"<=2020/9/30",#REF!,"<>長期",#REF!,$C$1) ->  | E38: =COUNTIFS(#REF!,">=2020/10/1",#REF!,"<=2020/12/31",#REF!,"<>長期",#REF!,$C$1) ->  | F38: =COUNTIFS(#REF!,">=2021/1/1",#REF!,"<=2021/3/31",#REF!,"<>長期",#REF!,$C$1) ->  | G38: =COUNTIFS(#REF!,">=2020/4/1",#REF!,"<=2021/3/31",#REF!,"長期",#REF!,$C$1) ->  | H38: =$G$13-(C38+D38+E38+F38+G38) -> 
C39: =SUMIFS(#REF!,#REF!,">=2020/4/1",#REF!,"<=2020/6/30",#REF!,"<>長期",#REF!,$C$1) ->  | D39: =SUMIFS(#REF!,#REF!,">=2020/7/1",#REF!,"<=2020/9/30",#REF!,"<>長期",#REF!,$C$1) ->  | E39: =SUMIFS(#REF!,#REF!,">=2020/10/1",#REF!,"<=2020/12/31",#REF!,"<>長期",#REF!,$C$1) ->  | F39: =SUMIFS(#REF!,#REF!,">=2021/1/1",#REF!,"<=2021/3/31",#REF!,"<>長期",#REF!,$C$1) ->  | G39: =SUMIFS(#REF!,#REF!,">=2020/4/1",#REF!,"<=2021/3/31",#REF!,"長期",#REF!,$C$1) ->  | H39: =$H$13-(C39+D39+E39+F39+G39) -> 
A41: 【応札者数等の分析】 | F41: （単位：件） | G41: 金額 | I41: （単位：円）
A42: 契約方式の区分 | C42: 応札（応募）者数 | D42: 公共工事等 | E42: 物品役務等 | F42: 合計 | G42: 公共工事等 | H42: 物品役務等 | I42: 合計
A43: 競争入札 | C43: 0者
C44: 1者 | D44: =D48+D52 ->  | E44: =E48+E52 ->  | F44: =D44+E44 ->  | G44: =G48+G52 ->  | H44: =H48+H52 ->  | I44: =G44+H44 -> 
C45: 2者以上 | D45: =D49+D53 ->  | E45: =E49+E53 ->  | F45: =D45+E45 ->  | G45: =G49+G53 ->  | H45: =H49+H53 ->  | I45: =G45+H45 -> 
C46: 合計 | D46: =SUM(D44:D45) ->  | J46: =IF(I46=H6+H7,"OK","要確認") -> 
A47: うち一般競争 | C47: 0者
C48: 1者 | D48: =COUNTIFS(#REF!,"一般競争",#REF!,1,#REF!,3,#REF!,$C$1)+COUNTIFS(#REF!,"一般競争",#REF!,1,#REF!,4,#REF!,$C$1) ->  | E48: =COUNTIFS(#REF!,"一般競争",#REF!,1,#REF!,1,#REF!,$C$1)+COUNTIFS(#REF!,"一般競争",#REF!,1,#REF!,2,#REF!,$C$1) ->  | F48: =D48+E48 ->  | G48: =SUMIFS(#REF!,#REF!,"一般競争",#REF!,3,#REF!,1)+SUMIFS(#REF!,#REF!,"一般競争",#REF!,4,#REF!,1) ->  | H48: =SUMIFS(#REF!,#REF!,"一般競争",#REF!,1,#REF!,1)+SUMIFS(#REF!,#REF!,"一般競争",#REF!,2,#REF!,1) ->  | I48: =G48+H48 ->  | L48: 1者割合
C49: 2者以上 | D49: =COUNTIFS(#REF!,"一般競争",#REF!,">1",#REF!,3,#REF!,$C$1)+COUNTIFS(#REF!,"一般競争",#REF!,">1",#REF!,4,#REF!,$C$1) ->  | E49: =COUNTIFS(#REF!,"一般競争",#REF!,">1",#REF!,1,#REF!,$C$1)+COUNTIFS(#REF!,"一般競争",#REF!,">1",#REF!,2,#REF!,$C$1) ->  | F49: =D49+E49 ->  | G49: =SUMIFS(#REF!,#REF!,"一般競争",#REF!,3,#REF!,">1")+SUMIFS(#REF!,#REF!,"一般競争",#REF!,4,#REF!,">1") ->  | H49: =SUMIFS(#REF!,#REF!,"一般競争",#REF!,1,#REF!,">1")+SUMIFS(#REF!,#REF!,"一般競争",#REF!,2,#REF!,">1") ->  | I49: =G49+H49 ->  | L49: 契約件数 | M49: 契約金額
C50: 合計 | D50: =SUM(D47:D49) ->  | E50: =SUM(E47:E49) ->  | F50: =SUM(F47:F49) ->  | I50: =SUM(I47:I49) ->  | J50: =IF(I50=H6,"OK","要確認") ->  | K50: 競争入札 | L50: =F44/F46 ->  | M50: =I44/I46 -> 
A51: うち指名競争 | C51: 0者 | K51: 企画競争による随意契約 | L51: =F56/F58 ->  | M51: =I56/I58 -> 
C52: 1者 | D52: =COUNTIFS(#REF!,"指名競争",#REF!,1,#REF!,3,#REF!,$C$1)+COUNTIFS(#REF!,"指名競争",#REF!,1,#REF!,4,#REF!,$C$1) ->  | E52: =COUNTIFS(#REF!,"指名競争",#REF!,1,#REF!,1,#REF!,$C$1)+COUNTIFS(#REF!,"指名競争",#REF!,1,#REF!,2,#REF!,$C$1) ->  | F52: =D52+E52 ->  | G52: =SUMIFS(#REF!,#REF!,"指名競争",#REF!,3,#REF!,1)+SUMIFS(#REF!,#REF!,"指名競争",#REF!,4,#REF!,1) ->  | H52: =SUMIFS(#REF!,#REF!,"指名競争",#REF!,1,#REF!,1)+SUMIFS(#REF!,#REF!,"指名競争",#REF!,2,#REF!,1) ->  | I52: =G52+H52 ->  | K52: 公募による随意契約 | L52: =F60/F62 ->  | M52: =I60/I62 -> 
C53: 2者以上 | D53: =COUNTIFS(#REF!,"指名競争",#REF!,">1",#REF!,3,#REF!,$C$1)+COUNTIFS(#REF!,"指名競争",#REF!,">1",#REF!,4,#REF!,$C$1) ->  | E53: =COUNTIFS(#REF!,"指名競争",#REF!,">1",#REF!,1,#REF!,$C$1)+COUNTIFS(#REF!,"指名競争",#REF!,">1",#REF!,2,#REF!,$C$1) ->  | F53: =D53+E53 ->  | G53: =SUMIFS(#REF!,#REF!,"指名競争",#REF!,3,#REF!,">1")+SUMIFS(#REF!,#REF!,"指名競争",#REF!,4,#REF!,">1") ->  | H53: =SUMIFS(#REF!,#REF!,"指名競争",#REF!,1,#REF!,">1")+SUMIFS(#REF!,#REF!,"指名競争",#REF!,2,#REF!,">1") ->  | I53: =G53+H53 -> 
C54: 合計 | D54: =SUM(D51:D53) ->  | E54: =SUM(E51:E53) ->  | F54: =SUM(F51:F53) ->  | I54: =SUM(I51:I53) ->  | J54: =IF(I54=H7,"OK","要確認") -> 
A55: 企画競争 | C55: 0者 | D55: =COUNTIFS(#REF!,"随意契約",#REF!,0,#REF!,3,#REF!,1,#REF!,$C$1)+COUNTIFS(#REF!,"随意契約",#REF!,0,#REF!,3,#REF!,2,#REF!,$C$1)+COUNTIFS(#REF!,"随意契約",#REF!,0,#REF!,4,#REF!,1,#REF!,$C$1)+COUNTIFS(#REF!,"随意契約",#REF!,0,#REF!,4,#REF!,2,#REF!,$C$1) ->  | E55: =COUNTIFS(#REF!,"随意契約",#REF!,0,#REF!,1,#REF!,1,#REF!,$C$1)+COUNTIFS(#REF!,"随意契約",#REF!,0,#REF!,1,#REF!,2,#REF!,$C$1)+COUNTIFS(#REF!,"随意契約",#REF!,0,#REF!,2,#REF!,1,#REF!,$C$1)+COUNTIFS(#REF!,"随意契約",#REF!,0,#REF!,2,#REF!,2,#REF!,$C$1) ->  | F55: =D55+E55 ->  | I55: =G55+H55 -> 0
C56: 1者 | D56: =COUNTIFS(#REF!,"随意契約",#REF!,1,#REF!,3,#REF!,1,#REF!,$C$1)+COUNTIFS(#REF!,"随意契約",#REF!,1,#REF!,3,#REF!,2,#REF!,$C$1)+COUNTIFS(#REF!,"随意契約",#REF!,1,#REF!,4,#REF!,1,#REF!,$C$1)+COUNTIFS(#REF!,"随意契約",#REF!,1,#REF!,4,#REF!,2,#REF!,$C$1) ->  | E56: =COUNTIFS(#REF!,"随意契約",#REF!,1,#REF!,1,#REF!,1,#REF!,$C$1)+COUNTIFS(#REF!,"随意契約",#REF!,1,#REF!,1,#REF!,2,#REF!,$C$1)+COUNTIFS(#REF!,"随意契約",#REF!,1,#REF!,2,#REF!,1,#REF!,$C$1)+COUNTIFS(#REF!,"随意契約",#REF!,1,#REF!,2,#REF!,2,#REF!,$C$1) ->  | F56: =D56+E56 ->  | G56: =SUMIFS(#REF!,#REF!,"随意契約",#REF!,3,#REF!,1,#REF!,1)+SUMIFS(#REF!,#REF!,"随意契約",#REF!,4,#REF!,1,#REF!,1)+SUMIFS(#REF!,#REF!,"随意契約",#REF!,3,#REF!,1,#REF!,2)+SUMIFS(#REF!,#REF!,"随意契約",#REF!,4,#REF!,1,#REF!,2) ->  | H56: =SUMIFS(#REF!,#REF!,"随意契約",#REF!,1,#REF!,1,#REF!,1)+SUMIFS(#REF!,#REF!,"随意契約",#REF!,2,#REF!,1,#REF!,1)+SUMIFS(#REF!,#REF!,"随意契約",#REF!,1,#REF!,1,#REF!,2)+SUMIFS(#REF!,#REF!,"随意契約",#REF!,2,#REF!,1,#REF!,2) ->  | I56: =G56+H56 -> 
C57: 2者以上 | D57: =COUNTIFS(#REF!,"随意契約",#REF!,">1",#REF!,3,#REF!,1,#REF!,$C$1)+COUNTIFS(#REF!,"随意契約",#REF!,">1",#REF!,3,#REF!,2,#REF!,$C$1)+COUNTIFS(#REF!,"随意契約",#REF!,">1",#REF!,4,#REF!,1,#REF!,$C$1)+COUNTIFS(#REF!,"随意契約",#REF!,">1",#REF!,4,#REF!,2,#REF!,$C$1) ->  | E57: =COUNTIFS(#REF!,"随意契約",#REF!,">1",#REF!,1,#REF!,1,#REF!,$C$1)+COUNTIFS(#REF!,"随意契約",#REF!,">1",#REF!,1,#REF!,2,#REF!,$C$1)+COUNTIFS(#REF!,"随意契約",#REF!,">1",#REF!,2,#REF!,1,#REF!,$C$1)+COUNTIFS(#REF!,"随意契約",#REF!,">1",#REF!,2,#REF!,2,#REF!,$C$1) ->  | F57: =D57+E57 ->  | G57: =SUMIFS(#REF!,#REF!,"随意契約",#REF!,3,#REF!,">1",#REF!,1)+SUMIFS(#REF!,#REF!,"随意契約",#REF!,4,#REF!,">1",#REF!,1)+SUMIFS(#REF!,#REF!,"随意契約",#REF!,3,#REF!,">1",#REF!,2)+SUMIFS(#REF!,#REF!,"随意契約",#REF!,4,#REF!,">1",#REF!,2) ->  | H57: =SUMIFS(#REF!,#REF!,"随意契約",#REF!,1,#REF!,">1",#REF!,1)+SUMIFS(#REF!,#REF!,"随意契約",#REF!,2,#REF!,">1",#REF!,1)+SUMIFS(#REF!,#REF!,"随意契約",#REF!,1,#REF!,">1",#REF!,2)+SUMIFS(#REF!,#REF!,"随意契約",#REF!,2,#REF!,">1",#REF!,2) ->  | I57: =G57+H57 -> 
C58: 合計 | D58: =SUM(D55:D57) ->  | E58: =SUM(E55:E57) ->  | F58: =SUM(F55:F57) ->  | I58: =SUM(I55:I57) ->  | J58: =IF(I58=H10,"OK","要確認") -> 
A59: 公募 | C59: 0者 | D59: =COUNTIFS(#REF!,"随意契約",#REF!,0,#REF!,3,#REF!,3,#REF!,$C$1)+COUNTIFS(#REF!,"随意契約",#REF!,0,#REF!,4,#REF!,3,#REF!,$C$1) ->  | E59: =COUNTIFS(#REF!,"随意契約",#REF!,0,#REF!,1,#REF!,3,#REF!,$C$1)+COUNTIFS(#REF!,"随意契約",#REF!,0,#REF!,2,#REF!,3,#REF!,$C$1) ->  | F59: =D59+E59 ->  | I59: =G59+H59 -> 0
C60: 1者 | D60: =COUNTIFS(#REF!,"随意契約",#REF!,1,#REF!,3,#REF!,3,#REF!,$C$1)+COUNTIFS(#REF!,"随意契約",#REF!,1,#REF!,4,#REF!,3,#REF!,$C$1) ->  | E60: =COUNTIFS(#REF!,"随意契約",#REF!,1,#REF!,1,#REF!,3,#REF!,$C$1)+COUNTIFS(#REF!,"随意契約",#REF!,1,#REF!,2,#REF!,3,#REF!,$C$1) ->  | F60: =D60+E60 ->  | G60: =SUMIFS(#REF!,#REF!,"随意契約",#REF!,3,#REF!,1,#REF!,3)+SUMIFS(#REF!,#REF!,"随意契約",#REF!,4,#REF!,1,#REF!,3) ->  | H60: =SUMIFS(#REF!,#REF!,"随意契約",#REF!,1,#REF!,1,#REF!,3)+SUMIFS(#REF!,#REF!,"随意契約",#REF!,2,#REF!,1,#REF!,3) ->  | I60: =G60+H60 -> 
C61: 2者以上 | D61: =COUNTIFS(#REF!,"随意契約",#REF!,">1",#REF!,3,#REF!,3,#REF!,$C$1)+COUNTIFS(#REF!,"随意契約",#REF!,">1",#REF!,4,#REF!,3,#REF!,$C$1) ->  | E61: =COUNTIFS(#REF!,"随意契約",#REF!,">1",#REF!,1,#REF!,3,#REF!,$C$1)+COUNTIFS(#REF!,"随意契約",#REF!,">1",#REF!,2,#REF!,3,#REF!,$C$1) ->  | F61: =D61+E61 ->  | G61: =SUMIFS(#REF!,#REF!,"随意契約",#REF!,3,#REF!,">1",#REF!,3)+SUMIFS(#REF!,#REF!,"随意契約",#REF!,4,#REF!,">1",#REF!,3) ->  | H61: =SUMIFS(#REF!,#REF!,"随意契約",#REF!,1,#REF!,">1",#REF!,3)+SUMIFS(#REF!,#REF!,"随意契約",#REF!,2,#REF!,">1",#REF!,3) ->  | I61: =G61+H61 -> 
C62: 合計 | D62: =SUM(D59:D61) ->  | E62: =SUM(E59:E61) ->  | F62: =SUM(F59:F61) ->  | I62: =SUM(I59:I61) ->  | J62: =IF(I62=H11,"OK","要確認") -> 
A63: 合計 | C63: 0者 | D63: =D55+D59 ->  | E63: =E55+E59 ->  | F63: =D63+E63 ->  | I63: =G63+H63 -> 0
C64: 1者 | D64: =D48+D52+D56+D60 ->  | E64: =E48+E52+E56+E60 ->  | F64: =D64+E64 ->  | G64: =G48+G52+G56+G60 ->  | H64: =H48+H52+H56+H60 ->  | I64: =G64+H64 -> 
C65: 2者以上 | D65: =D49+D53+D57+D61 ->  | E65: =E49+E53+E57+E61 ->  | F65: =D65+E65 ->  | G65: =G49+G53+G57+G61 ->  | H65: =H49+H53+H57+H61 ->  | I65: =G65+H65 -> 
C66: 合計 | D66: =SUM(D63:D65) ->  | E66: =SUM(E63:E65) ->  | F66: =SUM(F63:F65) ->  | I66: =SUM(I63:I65) ->  | J66: =IF(I66=H6+H7+H10+H11,"OK","要確認") -> 
B69: **
B70: 大臣官房会計課（建）
B71: 大臣官房会計課（運）
B72: 大臣官房官庁営繕部
B73: 総合政策局
B74: 国土政策局
B75: 土地・建設産業局
B76: 都市局
B77: 水管理・国土保全局
B78: 水管理・国土保全局（水資源部）
B79: 道路局
B80: 住宅局
B81: 自動車局
B82: 港湾局
B83: 航空局
B84: 北海道局
B85: 国総研（つくば）
B86: 国総研（横須賀）
B87: 国土交通大学校
B88: 国土地理院
B89: 海難審判所
B90: 東北地方整備局
B91: 関東地方整備局
B92: 北陸地方整備局
B93: 中部地方整備局
B94: 近畿地方整備局
B95: 中国地方整備局
B96: 四国地方整備局
B97: 九州地方整備局
B98: 東北地方整備局（港湾空港）
B99: 関東地方整備局（港湾空港）
B100: 北陸地方整備局（港湾空港）
B101: 中部地方整備局（港湾空港）
B102: 近畿地方整備局（港湾空港）
B103: 中国地方整備局（港湾空港）
B104: 四国地方整備局（港湾空港）
B105: 九州地方整備局（港湾空港）
B106: 北海道開発局
B107: 北海道運輸局
B108: 東北運輸局
B109: 関東運輸局
B110: 北陸信越運輸局
B111: 中部運輸局
B112: 近畿運輸局
B113: 神戸運輸監理部
B114: 中国運輸局
B115: 四国運輸局
B116: 九州運輸局
B117: 東京航空局
B118: 大阪航空局
B119: 観光庁
B120: *気象*
B121: 気象庁本庁
B122: 気象研究所
B123: 気象衛星センター
B124: 札幌管区気象台
B125: 仙台管区気象台
B126: 東京管区気象台
B127: 大阪管区気象台
B128: 福岡管区気象台
B129: 沖縄気象台
B130: 運輸安全委員会
B131: *保安*
B132: 海上保安庁本庁
B133: 海上保安大学校
B134: 海上保安学校
B135: 第一管区海上保安本部
B136: 第二管区海上保安本部
B137: 第三管区海上保安本部
B138: 第四管区海上保安本部
B139: 第五管区海上保安本部
B140: 第六管区海上保安本部
B141: 第七管区海上保安本部
B142: 第八管区海上保安本部
B143: 第九管区海上保安本部
B144: 第十管区海上保安本部
B145: 第十一管区海上保安本部

Sheet 物品役務調達（競争入札）
A1: 物品役務等の名称及び数量 | B1: 契約担当官等の氏名並びにその所属する部局の名称及び所在地 | C1: 契約を締結した日 | D1: 法人番号 | E1: 契約の相手方の称号又は名称及び住所 | F1: 一般競争入札・指名競争入札の別（総合評価の実施） | G1: 予定価格 | H1: 契約金額 | I1: 落札率（小数点第3位を四捨五入） ※自動計算 | J1: 備考
A2: 令和６年度自動車事故被害者へのアウトリーチ・自動車ユーザー理解促進業務【業務委託】 | B2: 支出負担行為担当官 国土交通省物流・自動車局長 鶴田 浩久 東京都千代田区霞が関２－１－３ | C2: 2024-04-01 | D2: 8010401024011 | E2: （株）博報堂 東京都港区赤坂５丁目３番１号 | F2: 一般競争入札 | G2: 199952662 | H2: 195657314 | I2: =H2/G2 -> 0.9785181755
A3: 自動車事故の被害者保護対策事業の検討等に関する調査【業務委託】 | B3: 支出負担行為担当官 国土交通省物流・自動車局長 鶴田 浩久 東京都千代田区霞が関２－１－３ | C3: 2024-04-01 | D3: 2011101025379 | E3: ＳＯＭＰＯリスクマネジメント（株） 東京都新宿区西新宿１－２４－１ | F3: 一般競争入札 | G3: 17836720 | H3: 17582873 | I3: 0.9857682915
A4: 「自動車損害賠償責任保険システム」の運用保守等 | B4: 支出負担行為担当官 国土交通省物流・自動車局長 鶴田 浩久 東京都千代田区霞が関２－１－３ | C4: 2024-04-01 | D4: 2011101022335 | E4: （株）ランディング 東京都新宿区荒木町８－１ | F4: 一般競争入札 | G4: 5777211 | H4: 3836811 | I4: 0.6641285908
A5: 令和６年度自動車損害賠償保障事業システムの保守 | B5: 支出負担行為担当官 国土交通省物流・自動車局長 鶴田 浩久 東京都千代田区霞が関２－１－３ | C5: 2024-04-01 | D5: 2011101056358 | E5: （株）ＮＴＴデータ・アイ 東京都江東区豊洲３ー３ー９ | F5: 一般競争入札 | G5: 5627270 | H5: 5560940 | I5: 0.9882127568
A6: 無保険車対策の事務処理等に関する業務（単価契約） | B6: 支出負担行為担当官 国土交通省物流・自動車局長 鶴田 浩久 東京都千代田区霞が関２－１－３ | C6: 2024-04-01 | D6: 2030001092148 | E6: （株）エッグヒューマン 埼玉県さいたま市西区二ツ宮３０４ー１ | F6: 一般競争入札 | G6: 4350308 | H6: 3645972 | I6: 0.8380951418
A7: 文書箱の保管等(単価契約） | B7: 支出負担行為担当官 国土交通省物流・自動車局長 鶴田 浩久 東京都千代田区霞が関２－１－３ | C7: 2024-04-01 | D7: 2010601028164 | E7: 富士倉庫運輸（株） 埼玉県さいたま市浦和区上木崎３－９－２ | F7: 一般競争入札 | G7: 1687039 | H7: 1687039 | I7: 1
A8: 事業用自動車総合安全情報システムの保守管理・運用支援等業務 | B8: 支出負担行為担当官 国土交通省物流・自動車局長 鶴田 浩久 東京都千代田区霞が関２－１－３ | C8: 2024-04-01 | D8: 8020001086566 | E8: （株）プリマジェスト 神奈川県川崎市幸区堀川町５８０ | F8: 一般競争入札 | G8: 35864433 | H8: 35640000 | I8: 0.9937421846
A9: 高齢者の免許返納の促進に向けた地方公共団体による対策の効果実証調査【業務委託】 | B9: 支出負担行為担当官 国土交通省物流・自動車局長 鶴田 浩久 東京都千代田区霞が関２－１－３ | C9: 2024-04-01 | D9: 7010001088960 | E9: デロイトトーマツコンサルティング（同） 東京都千代田区大手町１－２－１ | F9: 一般競争入札 | G9: 499933530 | H9: 494230555 | I9: 0.9885925335
A10: 令和６年度旅客自動車運送事業者報告情報管理・集計システムの運用保守 | B10: 支出負担行為担当官 国土交通省物流・自動車局長 鶴田 浩久 東京都千代田区霞が関２－１－３ | C10: 2024-04-01 | D10: 7010401052137 | E10: 東芝デジタルソリューションズ（株） 神奈川県川崎市幸区堀川町７２ー３４ | F10: 一般競争入札 | G10: 15701400 | H10: 15620000 | I10: 0.9948157489
A11: 自動車行政に係る一般事務の補助作業（単価契約） | B11: 支出負担行為担当官 国土交通省物流・自動車局長 鶴田 浩久 東京都千代田区霞が関２－１－３ | C11: 2024-04-01 | D11: 6013301007723 | E11: （株）ティム・プラニング 東京都豊島区東池袋４－１４－１ | F11: 一般競争入札 | G11: 2787400 | H11: 2397164 | I11: 0.86
A12: 軽二輪のOSS申請の実施等に係る業務改善 | B12: 支出負担行為担当官 国土交通省物流・自動車局長 鶴田 浩久 東京都千代田区霞が関２－１－３ | C12: 2024-04-01 | D12: 6010601062093 | E12: （株）ＮＴＴデータ 東京都江東区豊洲３－３－３ | F12: 一般競争入札 | G12: 1237766715 | H12: 1225400000 | I12: 0.9900088483
A13: 自動車登録検査関係システム等の更改に係る工程管理支援等業務 | B13: 支出負担行為担当官 国土交通省物流・自動車局長 鶴田 浩久 東京都千代田区霞が関２－１－３ | C13: 2024-04-01 | D13: 7010401006126 | E13: 沖電気工業（株） 東京都港区虎ノ門１－７－１２ | F13: 一般競争入札（総合評価の実施） | G13: 567300888 | H13: 400510000 | I13: 0.7059921965
A14: 自動車登録検査関係システム等に係る業務改善（令和６年４月） | B14: 支出負担行為担当官 国土交通省物流・自動車局長 鶴田 浩久 東京都千代田区霞が関２－１－３ | C14: 2024-04-01 | D14: 6010601062093 | E14: （株）ＮＴＴデータ 東京都江東区豊洲３－３－３ | F14: 一般競争入札 | G14: 500665315 | H14: 483200146 | I14: 0.9651160796
A15: 自動車登録検査関係システムを担当するプロジェクト推進組織（PJMO）支援業務 | B15: 支出負担行為担当官 国土交通省物流・自動車局長 鶴田 浩久 東京都千代田区霞が関２－１－３ | C15: 2024-04-01 | D15: 6010001030403 | E15: （株）三菱総合研究所 東京都千代田区永田町２－１０ー３ | F15: 一般競争入札（総合評価の実施） | G15: 364018050 | H15: 356400000 | I15: 0.979072329
A16: ＲＩＣＯＨトナー Ｐ５０１Ｓ他の購入（単価契約） | B16: 支出負担行為担当官 国土交通省物流・自動車局長 鶴田 浩久 東京都千代田区霞が関２－１－３ | C16: 2024-04-01 | D16: 1010001110829 | E16: リコージャパン（株） 東京都港区芝浦３－４－１ | F16: 一般競争入札 | G16: 279945050 | H16: 259743330 | I16: 0.927836838
A17: 自動車登録検査業務等に使用するＯＣＲ申請書等用紙の製造請負業務（単価契約） | B17: 支出負担行為担当官 国土交通省物流・自動車局長 鶴田 浩久 東京都千代田区霞が関２－１－３ | C17: 2024-04-01 | D17: 5180301013959 | E17: 小林クリエイト（株） 東京都中央区新富１－１８－１ | F17: 一般競争入札 | G17: 93663504 | H17: 67825296 | I17: 0.724137931
A18: 自動車登録検査関係システムを担当するプロジェクト推進組織（ＰＪＭＯ）支援業務 | B18: 支出負担行為担当官 国土交通省物流・自動車局長 鶴田 浩久 東京都千代田区霞が関２－１－３ | C18: 2024-04-01 | D18: 6010001030403 | E18: （株）三菱総合研究所 東京都千代田区永田町２－１０ー３ | F18: 一般競争入札 | G18: 91004512.5 | H18: 87450000 | I18: 0.9609413599
A19: カードプリンタ用インクリボンの購入・下取り（令和６年度）（単価契約） | B19: 支出負担行為担当官 国土交通省物流・自動車局長 鶴田 浩久 東京都千代田区霞が関２－１－３ | C19: 2024-04-01 | D19: 5180301013959 | E19: 小林クリエイト（株） 東京都中央区新富１－１８－１ | F19: 一般競争入札 | G19: 84585600 | H19: 75081600 | I19: 0.8876404494
A20: 自動車登録検査業務の軽二輪OSS等に係る工程管理支援業務 | B20: 支出負担行為担当官 国土交通省物流・自動車局長 鶴田 浩久 東京都千代田区霞が関２－１－３ | C20: 2024-04-01 | D20: 7010401006126 | E20: 沖電気工業（株） 東京都港区虎ノ門１－７－１２ | F20: 一般競争入札 | G20: 83733805 | H20: 79750000 | I20: 0.952422979
A21: 次期自動車登録検査関係システムの更改における改修内容についての提言 | B21: 支出負担行為担当官 国土交通省物流・自動車局長 鶴田 浩久 東京都千代田区霞が関２－１－３ | C21: 2024-04-01 | D21: 1010401023102 | E21: ＰｗＣコンサルティング（同） 東京都千代田区大手町１－２－１ | F21: 一般競争入札 | G21: 49989335 | H21: 43890000 | I21: 0.8779872747
A22: デジタル技術を活用した自動車保有関係手続におけるワンストップサービス（OSS）の利便性向上に向けた調査業務 | B22: 支出負担行為担当官 国土交通省物流・自動車局長 鶴田 浩久 東京都千代田区霞が関２－１－３ | C22: 2024-04-01 | D22: 7010001088960 | E22: デロイトトーマツコンサルティング（同） 東京都千代田区大手町１－２－１ | F22: 一般競争入札 | G22: 30047154 | H22: 27280000 | I22: 0.9079062862
A23: 運輸支局等窓口設置発券機等用サーマルロール紙の購入（単価契約） | B23: 支出負担行為担当官 国土交通省物流・自動車局長 鶴田 浩久 東京都千代田区霞が関２－１－３ | C23: 2024-04-01 | D23: 3020001038381 | E23: リプライス（株） 神奈川県横浜市北区新横浜３－２２－９ | F23: 一般競争入札 | G23: 8791051 | H23: 7905458 | I23: 0.8992619881
A24: 電子車検証特設サイトの保守及び改修業務 | B24: 支出負担行為担当官 国土交通省物流・自動車局長 鶴田 浩久 東京都千代田区霞が関２－１－３ | C24: 2024-04-01 | D24: 9010501031600 | E24: （株）グランドユニット 東京都台東区浅草橋３－１９－４ | F24: 一般競争入札 | G24: 5362500 | H24: 4888400 | I24: 0.9115897436
A25: 自動車検査登録印紙の荷造及び運送【単価契約】 | B25: 支出負担行為担当官 国土交通省物流・自動車局長 鶴田 浩久 東京都千代田区霞が関２－１－３ | C25: 2024-04-01 | D25: 6021001032900 | E25: 立入運輸（株） 東京都新宿区神楽坂６－７３ | F25: 一般競争入札 | G25: 3591472 | H25: 3591472 | I25: 1
A26: 国及び軽自動車検査協会用自動車検査標章 | B26: 支出負担行為担当官 国土交通省物流・自動車局長 鶴田 浩久 東京都千代田区霞が関２－１－３ | C26: 2024-04-01 | D26: 5180301013959 | E26: 小林クリエイト（株） 東京都中央区新富１－１８－１ | F26: 一般競争入札 | G26: 716083000 | H26: 654350400 | I26: 0.9137912784
A27: 令和６年度自動車検査・整備情報システムの運用保守 | B27: 支出負担行為担当官 国土交通省物流・自動車局長 鶴田 浩久 東京都千代田区霞が関２－１－３ | C27: 2024-04-01 | D27: 7010401022916 | E27: 日本電気（株） 東京都港区芝５－７－１ | F27: 一般競争入札 | G27: 118156597 | H27: 115500000 | I27: 0.9775163041
A28: 令和６年度自動車検査受付装置の設置工事及び連携試験 | B28: 支出負担行為担当官 国土交通省物流・自動車局長 鶴田 浩久 東京都千代田区霞が関２－１－３ | C28: 2024-04-01 | D28: 2011101056358 | E28: （株）ＮＴＴデータ・アイ 東京都江東区豊洲３ー３ー９ | F28: 一般競争入札 | G28: 38358650 | H28: 37825700 | I28: 0.9861061325
A29: 令和６年度 自動車検査官等研修（単価契約） | B29: 支出負担行為担当官 国土交通省物流・自動車局長 鶴田 浩久 東京都千代田区霞が関２－１－３ | C29: 2024-04-01 | D29: 6012405000493 | E29: （独）自動車技術総合機構交通安全環境研究所 東京都調布市深大寺東町７－４２－２７ | F29: 一般競争入札 | G29: 34840439 | H29: 31528645 | I29: 0.9049439647
A30: 自動車整備士資格申請のオンライン化に伴うコンサルティング業務 | B30: 支出負担行為担当官 国土交通省物流・自動車局長 鶴田 浩久 東京都千代田区霞が関２－１－３ | C30: 2024-04-01 | D30: 8010001085296 | E30: アビームコンサルティング（株） 東京都千代田八重洲２－２－１ | F30: 一般競争入札 | G30: 30094913 | H30: 29150000 | I30: 0.9686022352
A31: 自動車整備業の発展に向けた総合的調査、分析及びその他請負業務 | B31: 支出負担行為担当官 国土交通省物流・自動車局長 鶴田 浩久 東京都千代田区霞が関２－１－３ | C31: 2024-04-01 | D31: 5010401023057 | E31: （株）日本能率協会総合研究所 東京都港区芝公園３ー１－２２ | F31: 一般競争入札 | G31: 27150097 | H31: 25476000 | I31: 0.938339189
A32: セキュリティラベルの製造（単価契約） | B32: 支出負担行為担当官 国土交通省物流・自動車局長 鶴田 浩久 東京都千代田区霞が関２－１－３ | C32: 2024-04-01 | D32: 7021002028665 | E32: （有）日本特殊ラベル 神奈川県相模原市緑区大島６７８－７ | F32: 一般競争入札 | G32: 12024826 | H32: 11899426 | I32: 0.9895715747
A33: 職権打刻プレートの製造（単価契約） | B33: 支出負担行為担当官 国土交通省物流・自動車局長 鶴田 浩久 東京都千代田区霞が関２－１－３ | C33: 2024-04-01 | D33: 7021002028665 | E33: （有）日本特殊ラベル 神奈川県相模原市緑区大島６７８－７ | F33: 一般競争入札 | G33: 9734802 | H33: 9321554 | I33: 0.9575494191
A34: 前検査を実施した自動車の使用者に対する点検・整備の励行を促すハガキの宛先等データ作成及び印刷・発送並びに点検・整備実施状況アンケートの回収及び集計調査(令和６年度) | B34: 支出負担行為担当官 国土交通省物流・自動車局長 鶴田 浩久 東京都千代田区霞が関２－１－３ | C34: 2024-04-01 | D34: 6010901001825 | E34: エスディーエムコンサルティング（株） 東京都調布市入間町１－３１－２３ | F34: 一般競争入札 | G34: 9195667 | H34: 6820000 | I34: 0.7416536506
A35: 自動車検査・整備情報システムの街頭検査端末用無線通信回線サービス | B35: 支出負担行為担当官 国土交通省物流・自動車局長 鶴田 浩久 東京都千代田区霞が関２－１－３ | C35: 2024-04-01 | D35: 9010401052465 | E35: ソフトバンク（株） 東京都港区海岸１－７－１ | F35: 一般競争入札 | G35: 6821320 | H35: 6688880 | I35: 0.980584403
A36: 令和６年度 運輸支局等における窓口業務の効率化、申請者等の利便性に資する導入支援用無線通信回線サービス | B36: 支出負担行為担当官 国土交通省物流・自動車局長 鶴田 浩久 東京都千代田区霞が関２－１－３ | C36: 2024-04-01 | D36: 3011001125518 | E36: （株）ＨＵＭＡＮ ＬＩＦＥ 東京都新宿区新宿２－１６－６ | F36: 一般競争入札 | G36: 4752000 | H36: 855360 | I36: 0.18
A37: 令和６年度自動車検査・整備情報システムのネットワーク回線サービス | B37: 支出負担行為担当官 国土交通省物流・自動車局長 鶴田 浩久 東京都千代田区霞が関２－１－３ | C37: 2024-04-01 | D37: 9011101031552 | E37: ＫＤＤＩ（株） 東京都新宿区西新宿２－３－２ | F37: 一般競争入札 | G37: 3127190 | H37: 2977040 | I37: 0.9519856485
A38: 自動車の点検整備に関する問い合わせに係るヘルプデスク運用業務 | B38: 支出負担行為担当官 国土交通省物流・自動車局長 鶴田 浩久 東京都千代田区霞が関２－１－３ | C38: 2024-04-01 | D38: 5020001142900 | E38: （株）Ａｈｍｙ 神奈川県横浜市西区高島２－１１－２ | F38: 一般競争入札 | G38: 2200000 | H38: 1584000 | I38: 0.72
A39: 先進安全自動車（ASV）の開発・実用化・普及の促進に関する調査【業務委託】 | B39: 支出負担行為担当官 国土交通省物流・自動車局長 鶴田 浩久 東京都千代田区霞が関２－１－３ | C39: 2024-04-01 | D39: 6012405000493 | E39: （独）自動車技術総合機構交通安全環境研究所 東京都調布市深大寺東町７－４２－２７ | F39: 一般競争入札 | G39: 51895345 | H39: 50535868 | I39: 0.9738034885
A40: 災害時の電力供給支援に資する電気自動車等の電源品質確保等に関する調査 | B40: 支出負担行為担当官 国土交通省物流・自動車局長 鶴田 浩久 東京都千代田区霞が関２－１－３ | C40: 2024-04-01 | D40: 3010401011971 | E40: 三菱ＵＦＪリサーチ＆コンサルティング（株） 東京都港区虎ノ門５－１１－２ | F40: 一般競争入札 | G40: 30130411.92 | H40: 29988200 | I40: 0.9952801204
A41: 後付けペダル踏み間違い急発進抑制装置の性能認定等に係る調査 | B41: 支出負担行為担当官 国土交通省物流・自動車局長 鶴田 浩久 東京都千代田区霞が関２－１－３ | C41: 2024-04-01 | D41: 4010005004660 | E41: （公財）日本自動車輸送技術協会 東京都新宿区四谷３－２－５ | F41: 一般競争入札 | G41: 13293605 | H41: 10982496 | I41: 0.8261488137
A42: 脱炭素に向けた産学官連携による次世代大型車両開発促進事業【業務委託】 | B42: 支出負担行為担当官 国土交通省物流・自動車局長 鶴田 浩久 東京都千代田区霞が関２－１－３ | C42: 2024-04-01 | D42: 6012405000493 | E42: （独）自動車技術総合機構交通安全環境研究所 東京都調布市深大寺東町７－４２－２７ | F42: 一般競争入札 | G42: 604668894 | H42: 559363858 | I42: =H42/G42 -> 0.9250746376
A43: 令和６年度 自動車基準・認証制度国際化対策事業【業務委託】 | B43: 支出負担行為担当官 国土交通省物流・自動車局長 鶴田 浩久 東京都千代田区霞が関２－１－３ | C43: 2024-04-01 | D43: 4010005004660 | E43: （公財）日本自動車輸送技術協会 東京都新宿区四谷３－２－５ | F43: 一般競争入札（総合評価の実施） | G43: 331872279 | H43: 279503991 | I43: 0.8422034882
A44: 令和６年度 脱炭素技術の国際基準化・国際展開の推進事業【業務委託】 | B44: 支出負担行為担当官 国土交通省物流・自動車局長 鶴田 浩久 東京都千代田区霞が関２－１－３ | C44: 2024-04-01 | D44: 4010005004660 | E44: （公財）日本自動車輸送技術協会 東京都新宿区四谷３－２－５ | F44: 一般競争入札 | G44: 83861137 | H44: 75725721 | I44: 0.9029894384
A45: 高圧水素タンクを搭載する自動車の安全確保に関する調査 | B45: 支出負担行為担当官 国土交通省物流・自動車局長 鶴田 浩久 東京都千代田区霞が関２－１－３ | C45: 2024-04-01 | D45: 1010405010435 | E45: （一財）日本自動車研究所 東京都港区芝大門１－１－３０ | F45: 一般競争入札 | G45: 72347947 | H45: 59836704 | I45: 0.8270684447
A46: 令和６年度 自動運転に関する国際基準策定推進事業【業務委託】 | B46: 支出負担行為担当官 国土交通省物流・自動車局長 鶴田 浩久 東京都千代田区霞が関２－１－３ | C46: 2024-04-01 | D46: 4010005004660 | E46: （公財）日本自動車輸送技術協会 東京都新宿区四谷３－２－５ | F46: 一般競争入札 | G46: 65946045 | H46: 62771044 | I46: 0.9518545653
A47: 令和６年度 運転自動化技術に求められる走行安全性及び機能要件等に関する調査【業務委託】 | B47: 支出負担行為担当官 国土交通省物流・自動車局長 鶴田 浩久 東京都千代田区霞が関２－１－３ | C47: 2024-04-01 | D47: 6012405000493 | E47: （独）自動車技術総合機構交通安全環境研究所 東京都調布市深大寺東町７－４２－２７ | F47: 一般競争入札 | G47: 47761131 | H47: 45037789 | I47: 0.9429799516
A48: 令和６年度 電気自動車の充電ポート通信におけるサイバーセキュリティ評価方法等に関する調査【業務委託】 | B48: 支出負担行為担当官 国土交通省物流・自動車局長 鶴田 浩久 東京都千代田区霞が関２－１－３ | C48: 2024-04-01 | D48: 6012405000493 | E48: （独）自動車技術総合機構交通安全環境研究所 東京都調布市深大寺東町７－４２－２７ | F48: 一般競争入札 | G48: 45674671 | H48: 34688370 | I48: 0.7594662258
A49: 令和６年度 電気自動車の安全性に関する検討・調査 | B49: 支出負担行為担当官 国土交通省物流・自動車局長 鶴田 浩久 東京都千代田区霞が関２－１－３ | C49: 2024-04-01 | D49: 6012405000493 | E49: （独）自動車技術総合機構交通安全環境研究所 東京都調布市深大寺東町７－４２－２７ | F49: 一般競争入札 | G49: 43642020 | H49: 38418859 | I49: 0.8803180742
A50: 車両改造不要なFCV燃費試験法に関する調査【業務委託】 | B50: 支出負担行為担当官 国土交通省物流・自動車局長 鶴田 浩久 東京都千代田区霞が関２－１－３ | C50: 2024-04-01 | D50: 1010405010435 | E50: （一財）日本自動車研究所 東京都港区芝大門１－１－３０ | F50: 一般競争入札 | G50: 30635118.9 | H50: 25627802 | I50: 0.8365497808
A51: 自動車LCA手法の国際的な基準調和に向けた技術調査 | B51: 支出負担行為担当官 国土交通省物流・自動車局長 鶴田 浩久 東京都千代田区霞が関２－１－３ | C51: 2024-04-01 | D51: 1010405010435 | E51: （一財）日本自動車研究所 東京都港区芝大門１－１－３０ | F51: 一般競争入札 | G51: 28648783 | H51: 25795160 | I51: 0.9003928718
A52: 令和６年度 自動車の安全性向上および傷害低減に関する調査 | B52: 支出負担行為担当官 国土交通省物流・自動車局長 鶴田 浩久 東京都千代田区霞が関２－１－３ | C52: 2024-04-01 | D52: 6012405000493 | E52: （独）自動車技術総合機構交通安全環境研究所 東京都調布市深大寺東町７－４２－２７ | F52: 一般競争入札 | G52: 27947604 | H52: 17018703 | I52: 0.6089503415
A53: 熱マネジメント技術の実燃費影響評価法に関する調査【業務委託】 | B53: 支出負担行為担当官 国土交通省物流・自動車局長 鶴田 浩久 東京都千代田区霞が関２－１－３ | C53: 2024-04-01 | D53: 1010405010435 | E53: （一財）日本自動車研究所 東京都港区芝大門１－１－３０ | F53: 一般競争入札 | G53: 27644015 | H53: 24484759 | I53: 0.8857164562
A54: 自動車騒音に係る国際基準等の見直しのための調査 | B54: 支出負担行為担当官 国土交通省物流・自動車局長 鶴田 浩久 東京都千代田区霞が関２－１－３ | C54: 2024-04-01 | D54: 6012405000493 | E54: （独）自動車技術総合機構交通安全環境研究所 東京都調布市深大寺東町７－４２－２７ | F54: 一般競争入札 | G54: 26531608 | H54: 22216954 | I54: 0.8373768375
A55: 車両安全対策の今後の在り方等の検討に関する業務【業務委託】 | B55: 支出負担行為担当官 国土交通省物流・自動車局長 鶴田 浩久 東京都千代田区霞が関２－１－３ | C55: 2024-04-01 | D55: 5010401023057 | E55: （株）日本能率協会総合研究所 東京都港区芝公園３ー１－２２ | F55: 一般競争入札 | G55: 21923862 | H55: 16984000 | I55: 0.7746810302
A56: ディーゼル乗用車等の路上走行試験法に関する調査 | B56: 支出負担行為担当官 国土交通省物流・自動車局長 鶴田 浩久 東京都千代田区霞が関２－１－３ | C56: 2024-04-01 | D56: 6012405000493 | E56: （独）自動車技術総合機構交通安全環境研究所 東京都調布市深大寺東町７－４２－２７ | F56: 一般競争入札 | G56: 21728813 | H56: 19224247 | I56: 0.8847352591
A57: プラグインハイブリッド車等における駆動用電池の劣化に関する調査【業務委託】 | B57: 支出負担行為担当官 国土交通省物流・自動車局長 鶴田 浩久 東京都千代田区霞が関２－１－３ | C57: 2024-04-01 | D57: 1010405010435 | E57: （一財）日本自動車研究所 東京都港区芝大門１－１－３０ | F57: 一般競争入札 | G57: 19165027 | H57: 17143408 | I57: 0.8945152021
A58: タイヤ摩耗試験法策定に向けた国内導入調査【業務委託】 | B58: 支出負担行為担当官 国土交通省物流・自動車局長 鶴田 浩久 東京都千代田区霞が関２－１－３ | C58: 2024-04-01 | D58: 1010405010435 | E58: （一財）日本自動車研究所 東京都港区芝大門１－１－３０ | F58: 一般競争入札 | G58: 18419971 | H58: 14526425 | I58: 0.7886236629
A59: ディーゼル重量車の排出ガス測定法に関する調査 | B59: 支出負担行為担当官 国土交通省物流・自動車局長 鶴田 浩久 東京都千代田区霞が関２－１－３ | C59: 2024-04-01 | D59: 6012405000493 | E59: （独）自動車技術総合機構交通安全環境研究所 東京都調布市深大寺東町７－４２－２７ | F59: 一般競争入札 | G59: 17505294 | H59: 14982756 | I59: 0.8558985642
A60: 重量電気自動車における一充電走行距離に関する調査【業務委託】 | B60: 支出負担行為担当官 国土交通省物流・自動車局長 鶴田 浩久 東京都千代田区霞が関２－１－３ | C60: 2024-04-01 | D60: 6012405000493 | E60: （独）自動車技術総合機構交通安全環境研究所 東京都調布市深大寺東町７－４２－２７ | F60: 一般競争入札 | G60: 16703161 | H60: 14667779 | I60: 0.8781439034
A61: 次世代自動車LCA手法の国際調和に向けた調査 | B61: 支出負担行為担当官 国土交通省物流・自動車局長 鶴田 浩久 東京都千代田区霞が関２－１－３ | C61: 2024-04-01 | D61: 6012405000493 | E61: （独）自動車技術総合機構交通安全環境研究所 東京都調布市深大寺東町７－４２－２７ | F61: 一般競争入札 | G61: 15956611 | H61: 14148970 | I61: 0.8867152304
A62: 電気自動車等の最高出力の測定方法に関する調査 | B62: 支出負担行為担当官 国土交通省物流・自動車局長 鶴田 浩久 東京都千代田区霞が関２－１－３ | C62: 2024-04-01 | D62: 6012405000493 | E62: （独）自動車技術総合機構交通安全環境研究所 東京都調布市深大寺東町７－４２－２７ | F62: 一般競争入札 | G62: 12473945 | H62: 11150954 | I62: 0.8939396478
A63: 車両基準に係る問い合わせ対応及び対応マニュアル作成業務（単価契約） | B63: 支出負担行為担当官 国土交通省物流・自動車局長 鶴田 浩久 東京都千代田区霞が関２－１－３ | C63: 2024-04-01 | D63: 3010001061814 | E63: ウーマンスタッフ（株） 東京都中央区銀座２－６－８ | F63: 一般競争入札 | G63: 5800410 | H63: 5800410 | I63: 1
A64: 自動車安全・環境基準国際標準化推進のための事務処理等に関する業務（単価契約） | B64: 支出負担行為担当官 国土交通省物流・自動車局長 鶴田 浩久 東京都千代田区霞が関２－１－３ | C64: 2024-04-01 | D64: 2030001092148 | E64: （株）エッグヒューマン 埼玉県さいたま市西区二ツ宮３０４ー１ | F64: 一般競争入札 | G64: 4557465 | H64: 3604540 | I64: 0.7909089812
A65: 自動車基準・認証制度の国際化をはじめとした国際的な自動車行政の推進に必要な資料等の翻訳業務【単価契約】 | B65: 支出負担行為担当官 国土交通省物流・自動車局長 鶴田 浩久 東京都千代田区霞が関２－１－３ | C65: 2024-04-01 | D65: 6030001048831 | E65: （株）さくらプランニング 東京都板橋区中台１－２１－７ | F65: 一般競争入札 | G65: 4557465 | H65: 3604540 | I65: 0.7909089812
A66: 燃料電池自動車の燃費等調査 | B66: 支出負担行為担当官 国土交通省物流・自動車局長 鶴田 浩久 東京都千代田区霞が関２－１－３ | C66: 2024-04-01 | D66: 9010001024708 | E66: トヨタモビリティサービス（株） 東京都中央区日本橋浜町２－１２－４ | F66: 一般競争入札 | G66: 1383105 | H66: 818400 | I66: 0.591712126
A67: 自動車に関する不具合情報受付等業務（単価契約） | B67: 支出負担行為担当官 国土交通省物流・自動車局長 鶴田 浩久 東京都千代田区霞が関２－１－３ | C67: 2024-04-01 | D67: 1010901035043 | E67: エスアールプランニング（株） 東京都世田谷区代田２－１０－１７ | F67: 一般競争入札 | G67: 14886135 | H67: 14116163 | I67: 0.9482758957
A68: 自動車の不具合情報に関する統計・分析調査業務 | B68: 支出負担行為担当官 国土交通省物流・自動車局長 鶴田 浩久 東京都千代田区霞が関２－１－３ | C68: 2024-04-01 | D68: 6012405000493 | E68: （独）自動車技術総合機構交通安全環境研究所 東京都調布市深大寺東町７－４２－２７ | F68: 一般競争入札 | G68: 13114791 | H68: 11946269 | I68: 0.9109004482
A69: 自動車に関する不具合情報受付等補助業務（単価契約） | B69: 支出負担行為担当官 国土交通省物流・自動車局長 鶴田 浩久 東京都千代田区霞が関２－１－３ | C69: 2024-04-01 | D69: 6013301007723 | E69: （株）ティム・プラニング 東京都豊島区東池袋４－１４－１ | F69: 一般競争入札 | G69: 7250512 | H69: 5800410 | I69: 0.8000000552
A70: 令和６年度自動車等認証業務に関する補助業務（単価契約） | B70: 支出負担行為担当官 国土交通省物流・自動車局長 鶴田 浩久 東京都千代田区霞が関２－１－３ | C70: 2024-04-01 | D70: 2030001092148 | E70: （株）エッグヒューマン 埼玉県さいたま市西区二ツ宮３０４ー１ | F70: 一般競争入札 | G70: 4557465 | H70: 3604540 | I70: 0.7909089812
A71: 「不正改造車を排除する運動」及び「自動車点検整備推進運動」に関する啓発用のぼり、ワッペン及びポスター等の作成及び発送 | B71: 支出負担行為担当官 国土交通省物流・自動車局長 鶴田 浩久 東京都千代田区霞が関２－１－３ | C71: 2024-04-09 | D71: 5010601023501 | E71: （株）キタジマ 東京都墨田区立川２－１１－７ 両国キタジマビル | F71: 一般競争入札 | G71: 11400125 | H71: 9152055 | I71: 0.8028030394
A72: 記録事務代行者用自動車検査標章の製造（単価契約） | B72: 支出負担行為担当官 国土交通省物流・自動車局長 鶴田 浩久 東京都千代田区霞が関２－１－３ | C72: 2024-04-11 | D72: 8010001002136 | E72: 共同印刷（株） 東京都文京区小石川４－１４－１２ | F72: 一般競争入札 | G72: 10657000 | H72: 10645800 | I72: 0.9989490476
A73: 自動車運送事業の事故防止に係る運行管理等の高度化に向けた総合的対策事業【業務委託】 | B73: 支出負担行為担当官 国土交通省物流・自動車局長 鶴田 浩久 東京都千代田区霞が関２－１－３ | C73: 2024-05-10 | D73: 4010001054032 | E73: （株）野村総合研究所 東京都千代田区大手町１－９－２ | G73: 170516550 | H73: 149600000 | I73: =H73/G73 -> 0.8773341942
A74: 令和６年度 衝突時の乗員保護に係る検討・調査 | B74: 支出負担行為担当官 国土交通省物流・自動車局長 鶴田 浩久 東京都千代田区霞が関２－１－３ | C74: 2024-05-10 | D74: 6012405000493 | E74: （独）自動車技術総合機構交通安全環境研究所 東京都調布市深大寺東町７－４２－２７ | F74: 一般競争入札 | G74: 42062583 | H74: 39535738 | I74: =H74/G74 -> 0.9399265376
A75: 令和６年度 ペダル踏み間違い時加速抑制装置等の国際基準策定等に関する調査【業務委託】 | B75: 支出負担行為担当官 国土交通省物流・自動車局長 鶴田 浩久 東京都千代田区霞が関２－１－３ | C75: 2024-05-10 | D75: 6012405000493 | E75: （独）自動車技術総合機構交通安全環境研究所 東京都調布市深大寺東町７－４２－２７ | F75: 一般競争入札 | G75: 38424603 | H75: 29971742 | I75: =H75/G75 -> 0.7800143569
A76: 自動車整備関係研修の申請手続きの利便性向上にかかる実証調査（請負業務） | B76: 支出負担行為担当官 国土交通省物流・自動車局長 鶴田 浩久 東京都千代田区霞が関２－１－３ | C76: 2024-05-10 | D76: 5010401023057 | E76: （株）日本能率協会総合研究所 東京都港区芝公園３ー１－２２ | F76: 一般競争入札 | G76: 29996060 | H76: 29414000 | I76: =H76/G76 -> 0.9805954515
A77: ペダル踏み間違い時加速抑制装置の海外技術動向及びアクセルペダル踏み込み速度に関する調査【業務委託】 | B77: 支出負担行為担当官 国土交通省物流・自動車局長 鶴田 浩久 東京都千代田区霞が関２－１－３ | C77: 2024-05-10 | D77: 5010605001676 | E77: （学）芝浦工業大学 東京都江東区豊洲３－７－５ | F77: 一般競争入札 | G77: 13261773 | H77: 9993390 | I77: =H77/G77 -> 0.753548564
A78: 先進安全自動車（ASV）のWebサイトの運営、実態調査等に関する業務 | B78: 支出負担行為担当官 国土交通省物流・自動車局長 鶴田 浩久 東京都千代田区霞が関２－１－３ | C78: 2024-05-10 | D78: 7010001085099 | E78: （株）住商アビーム自動車総合研究所 東京都千代田区大手町２－３－２ | F78: 一般競争入札 | G78: 11295900 | H78: 11295900 | I78: 1
A79: 無車検（無保険）車の事務処理に関する業務【単価契約】 | B79: 支出負担行為担当官 国土交通省物流・自動車局長 鶴田 浩久 東京都千代田区霞が関２－１－３ | C79: 2024-05-10 | D79: 7040001020227 | E79: （株）カインズスタッフ 千葉県船橋市葛飾町２－３４０ | F79: 一般競争入札 | G79: 3018015 | H79: 2574810 | I79: =H79/G79 -> 0.8531468531
A80: 自動車安全特別会計における消費瑛及び地方消費税の確定申告（令和５年度分）の支援業務 | B80: 支出負担行為担当官 国土交通省物流・自動車局長 鶴田 浩久 東京都千代田区霞が関２－１－３ | C80: 2024-05-13 | D80: - | E80: 近藤卓也税理士事務所 東京都渋谷区初台１－５１－１初台センタービル | F80: 一般競争入札 | G80: 1100000 | H80: 990000 | I80: 0.9
A81: 特定小型原動機付自転車等の基準適合性に係る市場抜取調査 | B81: 支出負担行為担当官 国土交通省物流・自動車局長 鶴田 浩久 東京都千代田区霞が関２－１－３ | C81: 2024-05-23 | D81: 4010005004660 | E81: （公財）日本自動車輸送技術協会 東京都新宿区四谷３－２－５ | F81: 一般競争入札 | G81: 82681480 | H81: 79041879 | I81: 0.9559804566
A82: 審査・リコール課個別業務システムの連携機能実装 | B82: 支出負担行為担当官 国土交通省物流・自動車局長 鶴田 浩久 東京都千代田区霞が関２－１－３ | C82: 2024-05-31 | D82: 6010601062093 | E82: （株）ＮＴＴデータ 東京都江東区豊洲３－３－３ | F82: 一般競争入札 | G82: 138357793.2 | H82: 136950000 | I82: 0.9898249808
A83: 車検証閲覧アプリを活用した譲渡証明書及び委任状の電子化検証 | B83: 支出負担行為担当官 国土交通省物流・自動車局長 鶴田 浩久 東京都千代田区霞が関２－１－３ | C83: 2024-06-04 | D83: 6010601062093 | E83: （株）ＮＴＴデータ 東京都江東区豊洲３－３－３ | F83: 一般競争入札 | G83: 166116082 | H83: 164450000 | I83: 0.9899703751
A84: 車両安全対策に資する事故情報記録装置データ等の利活用に関する調査【業務委託】 | B84: 支出負担行為担当官 国土交通省物流・自動車局長 鶴田 浩久 東京都千代田区霞が関２－１－３ | C84: 2024-06-12 | D84: 2010005018547 | E84: （公財）交通事故総合分析センター 東京都千代田区神田猿楽町２－７－８ | F84: 一般競争入札 | G84: 36131114 | H84: 29990455 | I84: =H84/G84 -> 0.830045124
A85: 令和６年度 無車検車両に対する是正の促進に資する使用実態調査 | B85: 支出負担行為担当官 国土交通省物流・自動車局長 鶴田 浩久 東京都千代田区霞が関２－１－３ | C85: 2024-06-12 | D85: 4320001001168 | E85: （株）佐伯コミュニケーションズ 大分県大分市広瀬町２－３－２１ | F85: 一般競争入札 | G85: 14668291 | H85: 10340000 | I85: 0.7049219299
A86: 車両安全対策の総合的な推進に関する調査 | B86: 支出負担行為担当官 国土交通省物流・自動車局長 鶴田 浩久 東京都千代田区霞が関２－１－３ | C86: 2024-06-13 | D86: 1010405010435 | E86: （一財）日本自動車研究所 東京都港区芝大門１－１－３０ | F86: 一般競争入札 | G86: 40808046 | H86: 35124408 | I86: 0.8607226134
A87: 「令和６年度自動車点検整備推進運動」に係るPRポスター、チラシ、小冊子のデザイン制作及び印刷・発送業務 | B87: 支出負担行為担当官 国土交通省物流・自動車局長 鶴田 浩久 東京都千代田区霞が関２－１－３ | C87: 2024-06-28 | D87: 5010001067883 | E87: （株）アイネット 東京都中央区銀座７丁目１６番２１号 | F87: 一般競争入札 | G87: 13652976 | H87: 10182238 | I87: 0.7457889035
A88: 令和６年度 自動運転（レベル４）の法規要件の策定調査【業務委託】 | B88: 支出負担行為担当官 国土交通省物流・自動車局長 鶴田 浩久 東京都千代田区霞が関２－１－３ | C88: 2024-07-05 | D88: 7010001088960 | E88: デロイトトーマツコンサルティング（同） 東京都千代田区大手町１－２－１ | F88: 一般競争入札 | G88: 150317707 | H88: 88000000 | I88: 0.5854267056
A89: 事業用自動車の事故要因の分析及び事故防止対策に係る事業【業務委託】 | B89: 支出負担行為担当官 国土交通省物流・自動車局長 鶴田 浩久 東京都千代田区霞が関２－１－３ | C89: 2024-07-09 | D89: 2011101025379 | E89: ＳＯＭＰＯリスクマネジメント（株） 東京都新宿区西新宿１－２４－１ | F89: 一般競争入札 | G89: 86818306 | H89: 67595000 | I89: =H89/G89 -> 0.7785800382
A90: 次期審査・リコール課個別業務システム改修に係る工程管理業務（令和６年度） | B90: 支出負担行為担当官 国土交通省物流・自動車局長 鶴田 浩久 東京都千代田区霞が関２－１－３ | C90: 2024-07-09 | D90: 8010001085296 | E90: アビームコンサルティング（株） 東京都千代田区丸の内１－４－１ | F90: 一般競争入札 | G90: 19578859 | H90: 19250000 | I90: 0.9832033624
A91: 令和６年度旅客自動車運送事業者報告情報管理・集計システムのスポット運用保守 | B91: 支出負担行為担当官 国土交通省物流・自動車局長 鶴田 浩久 東京都千代田区霞が関２－１－３ | C91: 2024-07-26 | D91: 7010401052137 | E91: 東芝デジタルソリューションズ（株） 神奈川県川崎市幸区堀川町７２ー３４ | F91: 一般競争入札 | G91: 24140377 | H91: 24140377 | I91: =H91/G91 -> 1
A92: 「自動車の整備前点検結果についての実態調査」等の調査票の回収、入力集計業務及びWEB調査運用業務 | B92: 支出負担行為担当官 国土交通省物流・自動車局長 鶴田 浩久 東京都千代田区霞が関２－１－３ | C92: 2024-07-26 | D92: 4013401004952 | E92: パシフィックリプロサービス（株） 東京都府中市中町１－１４－１ | F92: 一般競争入札 | G92: 14974521 | H92: 10835000 | I92: =H92/G92 -> 0.7235623764
A93: 電子車検証の空き領域の利活用システムの基盤構築・運用・保守業務 | B93: 支出負担行為担当官 国土交通省物流・自動車局長 鶴田 浩久 東京都千代田区霞が関２－１－３ | C93: 2024-07-31 | D93: 6010601062093 | E93: （株）ＮＴＴデータ 東京都江東区豊洲３－３－３ | F93: 一般競争入札（総合評価の実施） | G93: 558982039 | H93: 466510000 | I93: =H93/G93 -> 0.8345706435
A94: 国際海上コンテナトレーラーに係る事故防止対策推進事業【業務委託】 | B94: 支出負担行為担当官 国土交通省物流・自動車局長 鶴田 浩久 東京都千代田区霞が関２－１－３ | C94: 2024-07-31 | D94: 1013201015327 | E94: 社会システム（株） 東京都渋谷区恵比寿１－２０－２２ | F94: 一般競争入札 | G94: 8594703 | H94: 8470000 | I94: =H94/G94 -> 0.9854907145
A95: 原動機付自転車の最高出力測定法に関する調査【業務委託費】 | B95: 支出負担行為担当官 国土交通省物流・自動車局長 鶴田 浩久 東京都千代田区霞が関２－１－３ | C95: 2024-07-31 | D95: 4010005004660 | E95: （公財）日本自動車輸送技術協会 東京都新宿区四谷３－２－５ | F95: 一般競争入札 | G95: 5375750 | H95: 5006100 | I95: 0.9312375017
A96: 大型車の車両脱輪事故防止対策実証調査 | B96: 支出負担行為担当官 国土交通省物流・自動車局長 鶴田 浩久 東京都千代田区霞が関２－１－３ | C96: 2024-08-02 | D96: 7010001088960 | E96: デロイトトーマツコンサルティング（同） 東京都千代田区大手町１－２－１ | F96: 一般競争入札 | G96: 41213670 | H96: 38280000 | I96: 0.9288180354
A97: 自動車損害賠償責任保険システム用機器等の更改 | B97: 支出負担行為担当官 国土交通省物流・自動車局長 鶴田 浩久 東京都千代田区霞が関２－１－３ | C97: 2024-08-02 | D97: 6030001021284 | E97: システムリンク（株） 埼玉県蕨市中央３丁目７番１号 | F97: 一般競争入札 | G97: 8827940 | H97: 8525000 | I97: 0.9656839534
A98: 健康起因事故防止のための運転者向けスクリーニング検査の活用等促進事業【業務委託】 | B98: 支出負担行為担当官 国土交通省物流・自動車局長 鶴田 浩久 東京都千代田区霞が関２－１－３ | C98: 2024-08-06 | D98: 2011101025379 | E98: ＳＯＭＰＯリスクマネジメント（株） 東京都新宿区西新宿１－２４－１ | F98: 一般競争入札 | G98: 61414183 | H98: 53900000 | I98: 0.877647432
A99: 運輸支局等におけるＡＩデジタルサイネージの導入 | B99: 支出負担行為担当官 国土交通省物流・自動車局長 鶴田 浩久 東京都千代田区霞が関２－１－３ | C99: 2024-08-09 | D99: 2013201004163 | E99: （株）ティファナ・ドットコム 東京都目黒区大橋２－２２－７ | F99: 一般競争入札 | G99: 186532500 | H99: 122380500 | I99: 0.6560813799
A100: 自動車損害賠償責任保険システムの新ハードウェアへの移行 | B100: 支出負担行為担当官 国土交通省物流・自動車局長 鶴田 浩久 東京都千代田区霞が関２－１－３ | C100: 2024-08-15 | D100: 6030001021284 | E100: システムリンク（株） 埼玉県蕨市中央３丁目７番１号 | F100: 一般競争入札 | G100: 12884449 | H100: 11440000 | I100: 0.8878920627
A101: 貨物軽自動車運送事業者の法令改正に伴う安全対策強化に向けた周知事業【業務委託】 | B101: 支出負担行為担当官 国土交通省物流・自動車局長 鶴田 浩久 東京都千代田区霞が関２－１－３ | C101: 2024-08-20 | D101: 4010001054032 | E101: （株）野村総合研究所 東京都千代田区大手町１－９－２ | F101: 一般競争入札 | G101: 55892098 | H101: 49500000 | I101: =H101/G101 -> 0.885635032
A102: 自動運転ワーキンググループ及び自動運転車の安全性能確保策に関する検討会事務局業務【業務委託】 | B102: 支出負担行為担当官 国土交通省物流・自動車局長 鶴田 浩久 東京都千代田区霞が関２－１－３ | C102: 2024-08-20 | D102: 7010001088960 | E102: デロイトトーマツコンサルティング（同） 東京都千代田区大手町１－２－１ | F102: 一般競争入札 | G102: 36074918 | H102: 35200000 | I102: =H102/G102 -> 0.9757471937
A103: 高齢運転者の運転データに関する調査 | B103: 支出負担行為担当官 国土交通省物流・自動車局長 鶴田 浩久 東京都千代田区霞が関２－１－３ | C103: 2024-08-20 | D103: 9010001027685 | E103: みずほリサーチ＆テクノロジーズ（株） 東京都千代田区神田錦町２－３ | F103: 一般競争入札 | G103: 11343238 | H103: 9996800 | I103: 0.8813003835
A104: 自動車検査受付装置の運用保守 | B104: 支出負担行為担当官 国土交通省物流・自動車局長 鶴田 浩久 東京都千代田区霞が関２－１－３ | C104: 2024-08-23 | D104: 2011101056358 | E104: （株）ＮＴＴデータ・アイ 東京都江東区豊洲３ー３ー９ | F104: 一般競争入札 | G104: 131049105 | H104: 129478965 | I104: 0.9880186896
A105: 令和６年度審査・リコール課個別業務システムの上期改修 | B105: 支出負担行為担当官 国土交通省物流・自動車局長 鶴田 浩久 東京都千代田区霞が関２－１－３ | C105: 2024-08-26 | D105: 6010601062093 | E105: （株）ＮＴＴデータ 東京都江東区豊洲３－３－３ | F105: 一般競争入札 | G105: 80841583 | H105: 72700000 | I105: 0.8992896638
A106: 医工連携による救急自動通報（D-Call Net）事故例調査研究等 | B106: 支出負担行為担当官 国土交通省物流・自動車局長 鶴田 浩久 東京都千代田区霞が関２－１－３ | C106: 2024-08-29 | D106: 2010005018547 | E106: （公財）交通事故総合分析センター 東京都千代田区神田猿楽町２－７－８ | F106: 一般競争入札 | G106: 80017229 | H106: 79879684 | I106: 0.9982810577
A107: 自動車整備関係研修のデジタル化に向けた調査・分析に係る請負業務 | B107: 支出負担行為担当官 国土交通省物流・自動車局長 鶴田 浩久 東京都千代田区霞が関２－１－３ | C107: 2024-08-30 | D107: 4010001054032 | E107: （株）野村総合研究所 東京都千代田区大手町１－９－２ | F107: 一般競争入札 | G107: 53684721 | H107: 49500000 | I107: 0.9220500559
A108: 自動運転における損害賠償責任に関する研究会開催支援【業務委託】 | B108: 支出負担行為担当官 国土交通省物流・自動車局長 鶴田 浩久 東京都千代田区霞が関２－１－３ | C108: 2024-09-02 | D108: 2011101025379 | E108: ＳＯＭＰＯリスクマネジメント（株） 東京都新宿区西新宿１－２４－１ | F108: 一般競争入札 | G108: 15980800 | H108: 10987607 | I108: 0.6875504981
A109: 運輸支局等における自動車検査登録関係手続の申請書作成支援システム導入 | B109: 支出負担行為担当官 国土交通省物流・自動車局長 鶴田 浩久 東京都千代田区霞が関２－１－３ | C109: 2024-09-20 | D109: 2011401007325 | E109: 富士フイルムシステムサービス（株） 東京都新宿区西新宿５－１－１ | F109: 一般競争入札 | G109: 571566490 | H109: 480395520 | I109: 0.8404893016
A110: V2X歩行者支援に関する実験【業務委託】 | B110: 支出負担行為担当官 国土交通省物流・自動車局長 鶴田 浩久 東京都千代田区霞が関２－１－３ | C110: 2024-09-20 | D110: 1010405010435 | E110: （一財）日本自動車研究所 東京都港区芝大門１－１－３０ | F110: 一般競争入札 | G110: 32640998 | H110: 32407201 | I110: 0.9928373207
A111: 貨物軽自動車運送事業者の法令改正に係る周知事業【業務委託】 | B111: 支出負担行為担当官 国土交通省物流・自動車局長 鶴田 浩久 東京都千代田区霞が関２－１－３ | C111: 2024-09-20 | D111: 4290001081321 | E111: （株）ライフナビコネクト 福岡県糟屋郡志免町南里６－２０－２０ | F111: 一般競争入札 | G111: 29929892 | H111: 21450000 | I111: 0.7166748213
A112: 自動運転における損害賠償責任に関する調査事業【業務委託】 | B112: 支出負担行為担当官 国土交通省物流・自動車局長 鶴田 浩久 東京都千代田区霞が関２－１－３ | C112: 2024-09-25 | D112: 2011101025379 | E112: ＳＯＭＰＯリスクマネジメント（株） 東京都新宿区西新宿１－２４－１ | F112: 一般競争入札 | G112: 25627561 | H112: 15073366 | I112: 0.5881701345
A113: 日本における電気自動車(EV)の認証取得に関する調査業務 | B113: 支出負担行為担当官 国土交通省物流・自動車局長 鶴田 浩久 東京都千代田区霞が関２－１－３ | C113: 2024-09-30 | D113: 4010005004660 | E113: （公財）日本自動車輸送技術協会 東京都新宿区四谷３－２－５ | F113: 一般競争入札 | G113: 14597528 | H113: 11886256 | I113: 0.8142649906
A114: 自動車の整備前点検結果についての実態調査結果の分析 | B114: 支出負担行為担当官 国土交通省物流・自動車局長 鶴田 浩久 東京都千代田区霞が関２－１－３ | C114: 2024-10-02 | D114: 1013201015327 | E114: 社会システム（株） 東京都渋谷区恵比寿１－２０－２２ | F114: 一般競争入札 | G114: 8383798 | H114: 7370000 | I114: 0.8790765236
A115: ＩＣＴを活用した次世代運行管理手法に関する調査【業務委託】 | B115: 支出負担行為担当官 国土交通省物流・自動車局長 鶴田 浩久 東京都千代田区霞が関２－１－３ | C115: 2024-10-08 | D115: 6012405000493 | E115: （独）自動車技術総合機構交通安全環境研究所 東京都調布市深大寺東町７－４２－２７ | F115: 一般競争入札 | G115: 13359173 | H115: 10300855 | I115: =H115/G115 -> 0.771069811
A116: 令和６年度自動車の運転支援システムの特性や車両挙動に係る理解促進の調査業務 | B116: 支出負担行為担当官 国土交通省物流・自動車局長 鶴田 浩久 東京都千代田区霞が関２－１－３ | C116: 2024-10-08 | D116: 6012405000493 | E116: （独）自動車技術総合機構交通安全環境研究所 東京都調布市深大寺東町７－４２－２７ | F116: 一般競争入札 | G116: 11092724 | H116: 10937428 | I116: =H116/G116 -> 0.9860001926
A117: 令和４年度及び令和５年度の「不正改造車を排除する運動」及び「自動車点検整備推進運動」に係る回収済アンケートの入力集計業務 | B117: 支出負担行為担当官 国土交通省物流・自動車局長 鶴田 浩久 東京都千代田区霞が関２－１－３ | C117: 2024-10-08 | D117: 2011001145673 | E117: ジョブコレ東京（株） 東京都渋谷区代々木２－４－９ | F117: 一般競争入札 | G117: 2167132 | H117: 652080 | I117: 0.3008953769
A118: 自動車事故被害者支援体制整備事業等の効果検証及び改善方策の検討に係る調査【業務委託】 | B118: 支出負担行為担当官 国土交通省物流・自動車局長 鶴田 浩久 東京都千代田区霞が関２－１－３ | C118: 2024-10-10 | D118: 7010001088960 | E118: デロイトトーマツコンサルティング（同） 東京都千代田区大手町１－２－１ | F118: 一般競争入札 | G118: 36070365 | H118: 32780000 | I118: 0.9087792707
A119: 大雪時の車両の立ち往生防止対策に関する調査 | B119: 支出負担行為担当官 国土交通省物流・自動車局長 鶴田 浩久 東京都千代田区霞が関２－１－３ | C119: 2024-10-16 | D119: 4210005005077 | E119: （大）福井大学 福井県福井市文京３－９－１ | F119: 一般競争入札 | G119: 9982877 | H119: 9460000 | I119: 0.9476226142
A120: 自動車損害賠償保障事業システムにおけるラインプリンタの更改 | B120: 支出負担行為担当官 国土交通省物流・自動車局長 鶴田 浩久 東京都千代田区霞が関２－１－３ | C120: 2024-10-21 | D120: 2011101056358 | E120: （株）ＮＴＴデータ・アイ 東京都江東区豊洲３ー３ー９ | F120: 一般競争入札 | G120: 11746927 | H120: 11540567 | I120: 0.9824328524
A121: 「交通事故被害者ノート」及び「交通事故にあったときには」に関する広報カードの作成、印刷及び発送業務 | B121: 支出負担行為担当官 国土交通省物流・自動車局長 鶴田 浩久 東京都千代田区霞が関２－１－３ | C121: 2024-10-24 | D121: 5010601023501 | E121: （株）キタジマ 東京都墨田区立川２－１１－７ 両国キタジマビル | F121: 一般競争入札 | G121: 5001172 | H121: 2260500 | I121: 0.4519940526
A122: 事故車両の保険修理価格に関する調査 | B122: 支出負担行為担当官 国土交通省物流・自動車局長 鶴田 浩久 東京都千代田区霞が関２－１－３ | C122: 2024-10-28 | D122: 7010001088960 | E122: デロイトトーマツコンサルティング（同） 東京都千代田区大手町１－２－１ | F122: 一般競争入札 | G122: 16313884 | H122: 14850000 | I122: 0.9102675978
A123: 「自動車損害賠償責任保険システム」の運用保守等 | B123: 支出負担行為担当官 国土交通省物流・自動車局長 鶴田 浩久 東京都千代田区霞が関２－１－３ | C123: 2024-10-28 | D123: 2011101022335 | E123: （株）ランディング 東京都新宿区荒木町８－１ | F123: 一般競争入札 | G123: 17979324 | H123: 17629524 | I123: 0.9805443186
A124: 貨物軽自動車運送事業者に係る情報の運送事業者監査総合情報システムへの入力及び周知事業【業務委託】 | B124: 支出負担行為担当官 国土交通省物流・自動車局長 鶴田 浩久 東京都千代田区霞が関２－１－３ | C124: 2024-10-28 | D124: 8020001086566 | E124: （株）プリマジェスト 神奈川県川崎市幸区堀川町５８０ | F124: 一般競争入札 | G124: 72945749 | H124: 72600000 | I124: 0.9952601899
A125: 令和６年度 可搬式無車検・無保険取締り装置の導入 | B125: 支出負担行為担当官 国土交通省物流・自動車局長 鶴田 浩久 東京都千代田区霞が関２－１－３ | C125: 2024-10-30 | D125: 9180001041942 | E125: （株）レッツ・コーポレーション 愛知県名古屋市中区丸の内２－６－１０ | F125: 一般競争入札 | G125: 29784354 | H125: 22770000 | I125: 0.7644953454
A126: 自動車の型式指定申請における不正防止に係る調査 | B126: 支出負担行為担当官 国土交通省物流・自動車局長 鶴田 浩久 東京都千代田区霞が関２－１－３ | C126: 2024-10-30 | D126: 7010001088960 | E126: デロイトトーマツコンサルティング（同） 東京都千代田区大手町１－２－１ | F126: 一般競争入札 | G126: 19933515 | H126: 16500000 | I126: 0.8277516534
A127: 令和６年度 ユーザー代行車検を受検した自動車ユーザーへの点検整備に関する啓発及び調査・分析 | B127: 支出負担行為担当官 国土交通省物流・自動車局長 鶴田 浩久 東京都千代田区霞が関２－１－３ | C127: 2024-11-01 | D127: 4320001001168 | E127: （株）佐伯コミュニケーションズ 大分県大分市広瀬町２－３－２１ | F127: 一般競争入札 | G127: 14981428 | H127: 9460000 | I127: 0.6314484841
A128: 自動車の永久抹消登録を適正に行っていない者に対する催告葉書の印刷及び発送 | B128: 支出負担行為担当官 国土交通省物流・自動車局長 鶴田 浩久 東京都千代田区霞が関２－１－３ | C128: 2024-11-01 | D128: 9010001001855 | E128: 勝美印刷（株） 東京都文京区白山１－１３－７ | F128: 一般競争入札 | G128: 3225052 | H128: 2889682 | I128: 0.896010979
A129: 地域の事業者間連携による自動車整備に係る自律的取組の調査業務 | B129: 支出負担行為担当官 国土交通省物流・自動車局長 鶴田 浩久 東京都千代田区霞が関２－１－３ | C129: 2024-11-06 | D129: 9011101039249 | E129: （株）オーエムシー 東京都新宿区四谷４－３４－１ | F129: 一般競争入札 | G129: 60715758 | H129: 48708000 | I129: 0.8022299582
A130: 先進安全自動車（ＡＳＶ）のＷｅｂサイトの改修等に関する業務 | B130: 支出負担行為担当官 国土交通省物流・自動車局長 鶴田 浩久 東京都千代田区霞が関２－１－３ | C130: 2024-11-06 | D130: 7010001085099 | E130: （株）住商アビーム自動車総合研究所 東京都千代田区大手町２－３－２ | F130: 一般競争入札 | G130: 10969552 | H130: 10603120 | I130: 0.9665955364
A131: 令和６年度 無車検車対策調査【業務委託】 | B131: 支出負担行為担当官 国土交通省物流・自動車局長 鶴田 浩久 東京都千代田区霞が関２－１－３ | C131: 2024-11-06 | D131: 1013201015327 | E131: 社会システム（株） 東京都渋谷区恵比寿１－２０－２２ | F131: 一般競争入札 | G131: 2885433 | H131: 2860000 | I131: 0.991185725
A132: デジタル技術（VR(Virtual Reality/仮想現実)等）を用いた教材の活用等に係る実証調査等の請負業務 | B132: 支出負担行為担当官 国土交通省物流・自動車局長 鶴田 浩久 東京都千代田区霞が関２－１－３ | C132: 2024-11-26 | D132: 6011301002736 | E132: （株）さんぽう 東京都杉並区和泉２－３６－２４ | F132: 一般競争入札 | G132: 25490353 | H132: 24893000 | I132: 0.9765655266
A133: 運輸支局等における自動車検査登録関係手続のスマートロッカーシステム導入 | B133: 支出負担行為担当官 国土交通省物流・自動車局長 鶴田 浩久 東京都千代田区霞が関２－１－３ | C133: 2024-11-29 | D133: 3011101040658 | E133: （株）ケー・シー・エス 東京都文京区小石川１－１－１７ | F133: 一般競争入札 | G133: 135690803 | H133: 118800000 | I133: 0.8755199127
A134: 令和６年度 多様な乗車姿勢における安全性の検討・調査【業務委託】 | B134: 支出負担行為担当官 国土交通省物流・自動車局長 鶴田 浩久 東京都千代田区霞が関２－１－３ | C134: 2024-11-29 | D134: 6012405000493 | E134: （独）自動車技術総合機構交通安全環境研究所 東京都調布市深大寺東町７－４２－２７ | F134: 一般競争入札 | G134: 21542683 | H134: 19941860 | I134: 0.9256906394
A135: 「交通事故にあったときには」のデータ作成、印刷製本及び発送 | B135: 支出負担行為担当官 国土交通省物流・自動車局長 鶴田 浩久 東京都千代田区霞が関２－１－３ | C135: 2024-12-09 | D135: 5010601023501 | E135: （株）キタジマ 東京都墨田区立川２－１１－７ 両国キタジマビル | F135: 一般競争入札 | G135: 5180183 | H135: 3597000 | I135: 0.6943770133
A136: 事業用自動車総合安全情報システムの機能改修 | B136: 支出負担行為担当官 国土交通省物流・自動車局長 鶴田 浩久 東京都千代田区霞が関２－１－３ | C136: 2024-12-12 | D136: 8020001086566 | E136: （株）プリマジェスト 神奈川県川崎市幸区堀川町５８０ | F136: 一般競争入札 | G136: 47817066 | H136: 46200000 | I136: =H136/G136 -> 0.9661822413
A137: 自動車検査登録総合ポータルサイトの改修業務 | B137: 支出負担行為担当官 国土交通省物流・自動車局長 鶴田 浩久 東京都千代田区霞が関２－１－３ | C137: 2024-12-18 | D137: 6010601062093 | E137: （株）ＮＴＴデータ 東京都江東区豊洲３－３－３ | F137: 一般競争入札 | G137: 23099010 | H137: 22880000 | I137: =H137/G137 -> 0.9905186413
A138: 出会頭事故に対する協調型支援のＤＳ効果検証用ＤＳシナリオ作成業務【業務委託】 | B138: 支出負担行為担当官 国土交通省物流・自動車局長 鶴田 浩久 東京都千代田区霞が関２－１－３ | C138: 2024-12-23 | D138: 6012405000493 | E138: （独）自動車技術総合機構交通安全環境研究所 東京都調布市深大寺東町７－４２－２７ | F138: 一般競争入札 | G138: 20590017 | H138: 19333363 | I138: 0.9389678017
A139: 自動車整備業界における生産性向上の取組事例等の調査・分析等 | B139: 支出負担行為担当官 国土交通省物流・自動車局長 鶴田 浩久 東京都千代田区霞が関２－１－３ | C139: 2024-12-24 | D139: 1013201015327 | E139: 社会システム（株） 東京都渋谷区恵比寿１－２０－２２ | F139: 一般競争入札 | G139: 4722941 | H139: 4400000 | I139: =H139/G139 -> 0.9316229019

Sheet 物品役務調達（随意契約）
A1: 物品役務等の名称及び数量 | B1: 契約担当官等の氏名並びにその所属する部局の名称及び所在地 | C1: 契約を締結した日 | D1: 法人番号 | E1: 契約の相手方の称号又は名称及び住所 | F1: 随意契約によることとした会計法令の根拠条文及び理由 | G1: 予定価格 | H1: 契約金額 | I1: 落札率（小数点第3位を四捨五入） ※自動計算 | J1: 再就職の役員の数
A2: 自動車検査登録印紙の製造 | B2: 支出負担行為担当官 国土交通省物流・自動車局長 鶴田 浩久 東京都千代田区霞が関２－１－３ | C2: 2024-04-01 | D2: 6010405003434 | E2: （独）国立印刷局 東京都港区虎ノ門２－２－５ | F2: 国立印刷局は、日本銀行券をはじめ国債証券、印紙、郵便切手その他公共上の見地から必要な証券及び印刷物の製造を行うことが規定されている唯一の機関とされており、会計法第２９条の３第４項「契約の性質又は目的が競争を許さない場合」に該当するため。 | G2: 92490339 | H2: 92490339 | I2: =H2/G2 -> 1 | J2: 0
A3: 事業用自動車の重大事故に関する事故調査分析研究業務【業務委託】 | C3: 2024-04-01 | D3: 2010005018547 | E3: （公財）交通事故総合分析センター 東京都千代田区神田猿楽町２－７－８ | F3: 公募を実施した結果、参加意思確認書の提出者はいなかったことから、（公財）交通事故総合分析センターは、当該業務を行う唯一の機関と考えられ、会計法第２９条の３第４項「契約の性質又は目的が競争を許さない場合」に該当するため。 | G3: 179413500 | H3: 174420000 | I3: =H3/G3 -> 0.9721676462 | J3: 0
A4: 自動運転車の事故に関する事故調査分析研究業務【業務委託】 | C4: 2024-05-24 | D4: 2010005018547 | E4: （公財）交通事故総合分析センター 東京都千代田区神田猿楽町２－７－８ | F4: 公募を実施した結果、参加意思確認書の提出者はいなかったことから、（公財）交通事故総合分析センターは、当該業務を行う唯一の機関と考えられ、会計法第２９条の３第４項「契約の性質又は目的が競争を許さない場合」に該当するため。 | G4: 47229308 | H4: 39523000 | I4: 0.8368320789 | J4: 0
I48: =IF(AND(AND(G48<>"",G48<>0),AND(H48<>"",H48<>0)),H48/G48*100,"") -> 
